Body,Body name,Date,Transaction number,Amount,Supplier name,Supplier ID,Expense area,Fund type,Expense type
http://www.ons.gov.uk/ons/guide-method/geography/products/names--codes-and-look-ups/names-and-codes-listings/names-and-codes-for-administrative-geography/index.html,Thanet District Council,06/08/2013,343106,610.13,Adecco Uk Ltd,ADE005,Director of Corporate Services and Transformation,Revenue,Employees
http://www.ons.gov.uk/ons/guide-method/geography/products/names--codes-and-look-ups/names-and-codes-listings/names-and-codes-for-administrative-geography/index.html,Thanet District Council,06/08/2013,343095,434.81,Allstar Business Solutions Ltd,ALL038,Director of Operational Services,Revenue,Transport Related Expenditure
http://www.ons.gov.uk/ons/guide-method/geography/products/names--codes-and-look-ups/names-and-codes-listings/names-and-codes-for-administrative-geography/index.html,Thanet District Council,06/08/2013,342806,500.00,Archant Kos Media,ARC007,Director of Community Services,Revenue,Supplies And Services
http://www.ons.gov.uk/ons/guide-method/geography/products/names--codes-and-look-ups/names-and-codes-listings/names-and-codes-for-administrative-geography/index.html,Thanet District Council,06/08/2013,343152,4557.68,Better Beaches Ltd,BET009,Director of Operational Services,Revenue,Supplies And Services
http://www.ons.gov.uk/ons/guide-method/geography/products/names--codes-and-look-ups/names-and-codes-listings/names-and-codes-for-administrative-geography/index.html,Thanet District Council,06/08/2013,342644,2151.00,Booker Alexander Ltd,BOO013,Director of Community Services,Revenue,Supplies And Services
http://www.ons.gov.uk/ons/guide-method/geography/products/names--codes-and-look-ups/names-and-codes-listings/names-and-codes-for-administrative-geography/index.html,Thanet District Council,06/08/2013,342872,2445.51,Canterbury City Council,CAN004,Director of Corporate Services and Transformation,Balance Sheet,Long Term Assets
http://www.ons.gov.uk/ons/guide-method/geography/products/names--codes-and-look-ups/names-and-codes-listings/names-and-codes-for-administrative-geography/index.html,Thanet District Council,06/08/2013,343116,236.00,Channel Commercials Plc,CCO001,Director of Operational Services,Revenue,Transport Related Expenditure
http://www.ons.gov.uk/ons/guide-method/geography/products/names--codes-and-look-ups/names-and-codes-listings/names-and-codes-for-administrative-geography/index.html,Thanet District Council,06/08/2013,343094,7690.00,Connoisseur Renovations,CON037,Director of Corporate Services and Transformation,Balance Sheet,Long Term Assets
http://www.ons.gov.uk/ons/guide-method/geography/products/names--codes-and-look-ups/names-and-codes-listings/names-and-codes-for-administrative-geography/index.html,Thanet District Council,06/08/2013,343134,1188.00,Disclosure And Barring Service,DIS017,Director of Corporate Services and Transformation,Revenue,Supplies And Services
http://www.ons.gov.uk/ons/guide-method/geography/products/names--codes-and-look-ups/names-and-codes-listings/names-and-codes-for-administrative-geography/index.html,Thanet District Council,06/08/2013,343186,1825.00,Dr Alexander Marshall,MAR100,Director of Operational Services,Revenue,Supplies And Services
http://www.ons.gov.uk/ons/guide-method/geography/products/names--codes-and-look-ups/names-and-codes-listings/names-and-codes-for-administrative-geography/index.html,Thanet District Council,06/08/2013,343087,1007.20,Family Mosaic Housing,FAM001,Director of Corporate Services and Transformation,Balance Sheet,Long Term Assets
http://www.ons.gov.uk/ons/guide-method/geography/products/names--codes-and-look-ups/names-and-codes-listings/names-and-codes-for-administrative-geography/index.html,Thanet District Council,06/08/2013,343140,246.00,Freight Transport Association,FRE007,Director of Operational Services,Revenue,Supplies And Services
http://www.ons.gov.uk/ons/guide-method/geography/products/names--codes-and-look-ups/names-and-codes-listings/names-and-codes-for-administrative-geography/index.html,Thanet District Council,06/08/2013,342759,2347.80,Fuel Oils Kent,FUE001,Director of Operational Services,Revenue,Supplies And Services
http://www.ons.gov.uk/ons/guide-method/geography/products/names--codes-and-look-ups/names-and-codes-listings/names-and-codes-for-administrative-geography/index.html,Thanet District Council,06/08/2013,342760,4926.60,Fuel Oils Kent,FUE001,Director of Operational Services,Revenue,Supplies And Services
http://www.ons.gov.uk/ons/guide-method/geography/products/names--codes-and-look-ups/names-and-codes-listings/names-and-codes-for-administrative-geography/index.html,Thanet District Council,06/08/2013,343150,325.00,H E Municipal Engineering Ltd,HEM003,Director of Operational Services,Revenue,Transport Related Expenditure
http://www.ons.gov.uk/ons/guide-method/geography/products/names--codes-and-look-ups/names-and-codes-listings/names-and-codes-for-administrative-geography/index.html,Thanet District Council,06/08/2013,342810,650.00,Hi Way Services Ltd,HIW002,Director of Operational Services,Revenue,Premises Related Expenditure
http://www.ons.gov.uk/ons/guide-method/geography/products/names--codes-and-look-ups/names-and-codes-listings/names-and-codes-for-administrative-geography/index.html,Thanet District Council,06/08/2013,342642,3276.40,Holbrook Revell Electrical Ltd,HOL015,Director of Operational Services,Revenue,Premises Related Expenditure
http://www.ons.gov.uk/ons/guide-method/geography/products/names--codes-and-look-ups/names-and-codes-listings/names-and-codes-for-administrative-geography/index.html,Thanet District Council,06/08/2013,342812,465.00,Holt & Wotton Ltd,HOL001,Director of Corporate Services and Transformation,Balance Sheet,Current Assets
http://www.ons.gov.uk/ons/guide-method/geography/products/names--codes-and-look-ups/names-and-codes-listings/names-and-codes-for-administrative-geography/index.html,Thanet District Council,06/08/2013,342851,6872.62,Hr Go Recruitment Ltd,HRG002,Director of Operational Services,Revenue,Employees
http://www.ons.gov.uk/ons/guide-method/geography/products/names--codes-and-look-ups/names-and-codes-listings/names-and-codes-for-administrative-geography/index.html,Thanet District Council,06/08/2013,342852,4852.29,Hr Go Recruitment Ltd,HRG002,Director of Operational Services,Revenue,Employees
http://www.ons.gov.uk/ons/guide-method/geography/products/names--codes-and-look-ups/names-and-codes-listings/names-and-codes-for-administrative-geography/index.html,Thanet District Council,06/08/2013,343178,4378.49,Hr Go Recruitment Ltd,HRG002,Director of Operational Services,Revenue,Employees
http://www.ons.gov.uk/ons/guide-method/geography/products/names--codes-and-look-ups/names-and-codes-listings/names-and-codes-for-administrative-geography/index.html,Thanet District Council,06/08/2013,343090,1074.00,John Gale,GAL001,Director of Corporate Services and Transformation,Balance Sheet,Long Term Assets
http://www.ons.gov.uk/ons/guide-method/geography/products/names--codes-and-look-ups/names-and-codes-listings/names-and-codes-for-administrative-geography/index.html,Thanet District Council,06/08/2013,343092,829.80,John Gale,GAL001,Director of Corporate Services and Transformation,Balance Sheet,Long Term Assets
http://www.ons.gov.uk/ons/guide-method/geography/products/names--codes-and-look-ups/names-and-codes-listings/names-and-codes-for-administrative-geography/index.html,Thanet District Council,06/08/2013,343093,922.80,John Gale,GAL001,Director of Corporate Services and Transformation,Balance Sheet,Long Term Assets
http://www.ons.gov.uk/ons/guide-method/geography/products/names--codes-and-look-ups/names-and-codes-listings/names-and-codes-for-administrative-geography/index.html,Thanet District Council,06/08/2013,342559,460.00,John Reeve (Plant Hire) Ltd,REE013,Director of Operational Services,Revenue,Transport Related Expenditure
http://www.ons.gov.uk/ons/guide-method/geography/products/names--codes-and-look-ups/names-and-codes-listings/names-and-codes-for-administrative-geography/index.html,Thanet District Council,06/08/2013,342821,230.00,John Reeve (Plant Hire) Ltd,REE013,Director of Operational Services,Revenue,Transport Related Expenditure
http://www.ons.gov.uk/ons/guide-method/geography/products/names--codes-and-look-ups/names-and-codes-listings/names-and-codes-for-administrative-geography/index.html,Thanet District Council,06/08/2013,343154,300.00,Kent County Council,KCC002,Director of Corporate Services and Transformation,Balance Sheet,Long Term Assets
http://www.ons.gov.uk/ons/guide-method/geography/products/names--codes-and-look-ups/names-and-codes-listings/names-and-codes-for-administrative-geography/index.html,Thanet District Council,06/08/2013,342750,282.20,Kent County Council (Kcs),KCC003,Director of Operational Services,Revenue,Premises Related Expenditure
http://www.ons.gov.uk/ons/guide-method/geography/products/names--codes-and-look-ups/names-and-codes-listings/names-and-codes-for-administrative-geography/index.html,Thanet District Council,06/08/2013,342808,53168.21,Kent County Council Re Pension Fund,KCC001,Director of Corporate Services and Transformation,Revenue,Employees
http://www.ons.gov.uk/ons/guide-method/geography/products/names--codes-and-look-ups/names-and-codes-listings/names-and-codes-for-administrative-geography/index.html,Thanet District Council,06/08/2013,342324,979.72,Landscape Supply Company,LAN014,Director of Operational Services,Revenue,Supplies And Services
http://www.ons.gov.uk/ons/guide-method/geography/products/names--codes-and-look-ups/names-and-codes-listings/names-and-codes-for-administrative-geography/index.html,Thanet District Council,06/08/2013,342762,30491.75,Locata (Housing Services) Ltd,LOC015,Director of Community Services,Revenue,Supplies And Services
http://www.ons.gov.uk/ons/guide-method/geography/products/names--codes-and-look-ups/names-and-codes-listings/names-and-codes-for-administrative-geography/index.html,Thanet District Council,06/08/2013,343058,650.00,Locata (Housing Services) Ltd,LOC015,Director of Community Services,Revenue,Supplies And Services
http://www.ons.gov.uk/ons/guide-method/geography/products/names--codes-and-look-ups/names-and-codes-listings/names-and-codes-for-administrative-geography/index.html,Thanet District Council,06/08/2013,343059,650.00,Locata (Housing Services) Ltd,LOC015,Director of Community Services,Revenue,Supplies And Services
http://www.ons.gov.uk/ons/guide-method/geography/products/names--codes-and-look-ups/names-and-codes-listings/names-and-codes-for-administrative-geography/index.html,Thanet District Council,06/08/2013,343053,830.00,Maxwells Grounds Maintenance Ltd,MAX002,Director of Operational Services,Revenue,Premises Related Expenditure
http://www.ons.gov.uk/ons/guide-method/geography/products/names--codes-and-look-ups/names-and-codes-listings/names-and-codes-for-administrative-geography/index.html,Thanet District Council,06/08/2013,342589,7470.05,Mears Ltd,MEA003,Director of Corporate Services and Transformation,Balance Sheet,Current Assets
http://www.ons.gov.uk/ons/guide-method/geography/products/names--codes-and-look-ups/names-and-codes-listings/names-and-codes-for-administrative-geography/index.html,Thanet District Council,06/08/2013,342591,16379.87,Mears Ltd,MEA003,Director of Corporate Services and Transformation,Balance Sheet,Current Assets
http://www.ons.gov.uk/ons/guide-method/geography/products/names--codes-and-look-ups/names-and-codes-listings/names-and-codes-for-administrative-geography/index.html,Thanet District Council,06/08/2013,342593,244.61,Mears Ltd,MEA003,Director of Corporate Services and Transformation,Balance Sheet,Current Assets
http://www.ons.gov.uk/ons/guide-method/geography/products/names--codes-and-look-ups/names-and-codes-listings/names-and-codes-for-administrative-geography/index.html,Thanet District Council,06/08/2013,342596,4476.30,Mears Ltd,MEA003,Director of Corporate Services and Transformation,Balance Sheet,Current Assets
http://www.ons.gov.uk/ons/guide-method/geography/products/names--codes-and-look-ups/names-and-codes-listings/names-and-codes-for-administrative-geography/index.html,Thanet District Council,06/08/2013,342741,14.83,Mears Ltd,MEA003,Director of Community Services,Revenue,Premises Related Expenditure
http://www.ons.gov.uk/ons/guide-method/geography/products/names--codes-and-look-ups/names-and-codes-listings/names-and-codes-for-administrative-geography/index.html,Thanet District Council,06/08/2013,342741,749.55,Mears Ltd,MEA003,Director of Operational Services,Revenue,Premises Related Expenditure
http://www.ons.gov.uk/ons/guide-method/geography/products/names--codes-and-look-ups/names-and-codes-listings/names-and-codes-for-administrative-geography/index.html,Thanet District Council,06/08/2013,342742,262.72,Mears Ltd,MEA003,Director of Operational Services,Revenue,Premises Related Expenditure
http://www.ons.gov.uk/ons/guide-method/geography/products/names--codes-and-look-ups/names-and-codes-listings/names-and-codes-for-administrative-geography/index.html,Thanet District Council,06/08/2013,342783,1817.56,Mears Ltd,MEA003,Director of Operational Services,Revenue,Premises Related Expenditure
http://www.ons.gov.uk/ons/guide-method/geography/products/names--codes-and-look-ups/names-and-codes-listings/names-and-codes-for-administrative-geography/index.html,Thanet District Council,06/08/2013,342785,542.41,Mears Ltd,MEA003,Director of Operational Services,Revenue,Premises Related Expenditure
http://www.ons.gov.uk/ons/guide-method/geography/products/names--codes-and-look-ups/names-and-codes-listings/names-and-codes-for-administrative-geography/index.html,Thanet District Council,06/08/2013,342824,136.57,Mears Ltd,MEA003,Director of Corporate Services and Transformation,Balance Sheet,Current Assets
http://www.ons.gov.uk/ons/guide-method/geography/products/names--codes-and-look-ups/names-and-codes-listings/names-and-codes-for-administrative-geography/index.html,Thanet District Council,06/08/2013,342824,1119.01,Mears Ltd,MEA003,Director of Operational Services,Revenue,Premises Related Expenditure
http://www.ons.gov.uk/ons/guide-method/geography/products/names--codes-and-look-ups/names-and-codes-listings/names-and-codes-for-administrative-geography/index.html,Thanet District Council,06/08/2013,342825,136.57,Mears Ltd,MEA003,Director of Corporate Services and Transformation,Balance Sheet,Current Assets
http://www.ons.gov.uk/ons/guide-method/geography/products/names--codes-and-look-ups/names-and-codes-listings/names-and-codes-for-administrative-geography/index.html,Thanet District Council,06/08/2013,342825,426.98,Mears Ltd,MEA003,Director of Corporate Services and Transformation,Balance Sheet,Long Term Assets
http://www.ons.gov.uk/ons/guide-method/geography/products/names--codes-and-look-ups/names-and-codes-listings/names-and-codes-for-administrative-geography/index.html,Thanet District Council,06/08/2013,342825,1628.83,Mears Ltd,MEA003,Director of Operational Services,Revenue,Premises Related Expenditure
http://www.ons.gov.uk/ons/guide-method/geography/products/names--codes-and-look-ups/names-and-codes-listings/names-and-codes-for-administrative-geography/index.html,Thanet District Council,06/08/2013,343044,95958.76,Mears Ltd,MEA003,Director of Community Services,Revenue,Premises Related Expenditure
http://www.ons.gov.uk/ons/guide-method/geography/products/names--codes-and-look-ups/names-and-codes-listings/names-and-codes-for-administrative-geography/index.html,Thanet District Council,06/08/2013,343056,1880.38,Mears Ltd,MEA003,Director of Community Services,Revenue,Premises Related Expenditure
http://www.ons.gov.uk/ons/guide-method/geography/products/names--codes-and-look-ups/names-and-codes-listings/names-and-codes-for-administrative-geography/index.html,Thanet District Council,06/08/2013,343064,1761.33,Mears Ltd,MEA003,Director of Community Services,Revenue,Premises Related Expenditure
http://www.ons.gov.uk/ons/guide-method/geography/products/names--codes-and-look-ups/names-and-codes-listings/names-and-codes-for-administrative-geography/index.html,Thanet District Council,06/08/2013,343045,997.50,Michael Page Finance,PAG008,Director of Corporate Services and Transformation,Revenue,Employees
http://www.ons.gov.uk/ons/guide-method/geography/products/names--codes-and-look-ups/names-and-codes-listings/names-and-codes-for-administrative-geography/index.html,Thanet District Council,06/08/2013,343086,1500.00,Millmead Childrens Ctr Prtnrship Ltd,MCC009,Director of Community Services,Revenue,Supplies And Services
http://www.ons.gov.uk/ons/guide-method/geography/products/names--codes-and-look-ups/names-and-codes-listings/names-and-codes-for-administrative-geography/index.html,Thanet District Council,06/08/2013,343143,7185.00,National Express Ltd,NAT010,Director of Community Services,Revenue,Supplies And Services
http://www.ons.gov.uk/ons/guide-method/geography/products/names--codes-and-look-ups/names-and-codes-listings/names-and-codes-for-administrative-geography/index.html,Thanet District Council,06/08/2013,342650,950.00,Nec (Uk) Ltd,NEC003,East Kent Shared Services,Revenue,Supplies And Services
http://www.ons.gov.uk/ons/guide-method/geography/products/names--codes-and-look-ups/names-and-codes-listings/names-and-codes-for-administrative-geography/index.html,Thanet District Council,06/08/2013,342651,950.00,Nec (Uk) Ltd,NEC003,East Kent Shared Services,Revenue,Supplies And Services
http://www.ons.gov.uk/ons/guide-method/geography/products/names--codes-and-look-ups/names-and-codes-listings/names-and-codes-for-administrative-geography/index.html,Thanet District Council,06/08/2013,342819,446.12,O2 (Uk) Ltd,O2U001,Director of Operational Services,Revenue,Supplies And Services
http://www.ons.gov.uk/ons/guide-method/geography/products/names--codes-and-look-ups/names-and-codes-listings/names-and-codes-for-administrative-geography/index.html,Thanet District Council,06/08/2013,343054,242.16,Ocs Group Uk Ltd T/A Fountains,OCS005,Director of Operational Services,Revenue,Premises Related Expenditure
http://www.ons.gov.uk/ons/guide-method/geography/products/names--codes-and-look-ups/names-and-codes-listings/names-and-codes-for-administrative-geography/index.html,Thanet District Council,06/08/2013,342802,360.00,R J Broadley Tree Surgery,RJB002,Director of Operational Services,Revenue,Premises Related Expenditure
http://www.ons.gov.uk/ons/guide-method/geography/products/names--codes-and-look-ups/names-and-codes-listings/names-and-codes-for-administrative-geography/index.html,Thanet District Council,06/08/2013,343038,550.00,R J Broadley Tree Surgery,RJB002,Director of Operational Services,Revenue,Premises Related Expenditure
http://www.ons.gov.uk/ons/guide-method/geography/products/names--codes-and-look-ups/names-and-codes-listings/names-and-codes-for-administrative-geography/index.html,Thanet District Council,06/08/2013,342827,64699.11,R R Richardson Ltd,RIC027,Director of Corporate Services and Transformation,Balance Sheet,Long Term Assets
http://www.ons.gov.uk/ons/guide-method/geography/products/names--codes-and-look-ups/names-and-codes-listings/names-and-codes-for-administrative-geography/index.html,Thanet District Council,06/08/2013,342254,236.14,Rolec Services Limited,ROL001,Director of Operational Services,Revenue,Supplies And Services
http://www.ons.gov.uk/ons/guide-method/geography/products/names--codes-and-look-ups/names-and-codes-listings/names-and-codes-for-administrative-geography/index.html,Thanet District Council,06/08/2013,342853,3623.65,Royal Mail,ROY004,Director of Corporate Services and Transformation,Revenue,Supplies And Services
http://www.ons.gov.uk/ons/guide-method/geography/products/names--codes-and-look-ups/names-and-codes-listings/names-and-codes-for-administrative-geography/index.html,Thanet District Council,06/08/2013,342561,1152.00,Satisnet Limited,SAT002,East Kent Shared Services,Revenue,Supplies And Services
http://www.ons.gov.uk/ons/guide-method/geography/products/names--codes-and-look-ups/names-and-codes-listings/names-and-codes-for-administrative-geography/index.html,Thanet District Council,06/08/2013,343088,8360.00,South East Building Company Limited,SEB001,Director of Corporate Services and Transformation,Balance Sheet,Long Term Assets
http://www.ons.gov.uk/ons/guide-method/geography/products/names--codes-and-look-ups/names-and-codes-listings/names-and-codes-for-administrative-geography/index.html,Thanet District Council,06/08/2013,343089,8950.00,South East Building Company Limited,SEB001,Director of Corporate Services and Transformation,Balance Sheet,Long Term Assets
http://www.ons.gov.uk/ons/guide-method/geography/products/names--codes-and-look-ups/names-and-codes-listings/names-and-codes-for-administrative-geography/index.html,Thanet District Council,06/08/2013,343091,6915.00,South East Building Company Limited,SEB001,Director of Corporate Services and Transformation,Balance Sheet,Long Term Assets
http://www.ons.gov.uk/ons/guide-method/geography/products/names--codes-and-look-ups/names-and-codes-listings/names-and-codes-for-administrative-geography/index.html,Thanet District Council,06/08/2013,342813,1705.00,South East England Councils,SEE017,Director of Corporate Services and Transformation,Revenue,Supplies And Services
http://www.ons.gov.uk/ons/guide-method/geography/products/names--codes-and-look-ups/names-and-codes-listings/names-and-codes-for-administrative-geography/index.html,Thanet District Council,06/08/2013,342672,245.13,Southern Electric,SEL007,Director of Operational Services,Revenue,Premises Related Expenditure
http://www.ons.gov.uk/ons/guide-method/geography/products/names--codes-and-look-ups/names-and-codes-listings/names-and-codes-for-administrative-geography/index.html,Thanet District Council,06/08/2013,342870,248.86,Southern Electric,SEL007,Director of Operational Services,Revenue,Premises Related Expenditure
http://www.ons.gov.uk/ons/guide-method/geography/products/names--codes-and-look-ups/names-and-codes-listings/names-and-codes-for-administrative-geography/index.html,Thanet District Council,06/08/2013,342831,234.40,Southern Paper,SPA002,Director of Corporate Services and Transformation,Revenue,Supplies And Services
http://www.ons.gov.uk/ons/guide-method/geography/products/names--codes-and-look-ups/names-and-codes-listings/names-and-codes-for-administrative-geography/index.html,Thanet District Council,06/08/2013,342669,347.18,Southern Water,SWA001,Director of Operational Services,Revenue,Premises Related Expenditure
http://www.ons.gov.uk/ons/guide-method/geography/products/names--codes-and-look-ups/names-and-codes-listings/names-and-codes-for-administrative-geography/index.html,Thanet District Council,06/08/2013,342855,1752.58,Southern Water,SWA001,Director of Operational Services,Revenue,Premises Related Expenditure
http://www.ons.gov.uk/ons/guide-method/geography/products/names--codes-and-look-ups/names-and-codes-listings/names-and-codes-for-administrative-geography/index.html,Thanet District Council,06/08/2013,342857,1162.71,Southern Water,SWA001,Director of Operational Services,Revenue,Premises Related Expenditure
http://www.ons.gov.uk/ons/guide-method/geography/products/names--codes-and-look-ups/names-and-codes-listings/names-and-codes-for-administrative-geography/index.html,Thanet District Council,06/08/2013,342878,331.09,Stewart Anthony Ltd,ANT001,Director of Operational Services,Revenue,Premises Related Expenditure
http://www.ons.gov.uk/ons/guide-method/geography/products/names--codes-and-look-ups/names-and-codes-listings/names-and-codes-for-administrative-geography/index.html,Thanet District Council,06/08/2013,343099,10866.70,Straight Plc,STR021,Director of Corporate Services and Transformation,Balance Sheet,Long Term Assets
http://www.ons.gov.uk/ons/guide-method/geography/products/names--codes-and-look-ups/names-and-codes-listings/names-and-codes-for-administrative-geography/index.html,Thanet District Council,06/08/2013,343100,422.33,Straight Plc,STR021,Director of Corporate Services and Transformation,Balance Sheet,Long Term Assets
http://www.ons.gov.uk/ons/guide-method/geography/products/names--codes-and-look-ups/names-and-codes-listings/names-and-codes-for-administrative-geography/index.html,Thanet District Council,06/08/2013,343101,33186.07,Straight Plc,STR021,Director of Corporate Services and Transformation,Balance Sheet,Long Term Assets
http://www.ons.gov.uk/ons/guide-method/geography/products/names--codes-and-look-ups/names-and-codes-listings/names-and-codes-for-administrative-geography/index.html,Thanet District Council,06/08/2013,342739,0.40,Supplies Team,SUP001,Director of Corporate Services and Transformation,Revenue,Supplies And Services
http://www.ons.gov.uk/ons/guide-method/geography/products/names--codes-and-look-ups/names-and-codes-listings/names-and-codes-for-administrative-geography/index.html,Thanet District Council,06/08/2013,342739,224.00,Supplies Team,SUP001,Director of Corporate Services and Transformation,Balance Sheet,Current Liabilities
http://www.ons.gov.uk/ons/guide-method/geography/products/names--codes-and-look-ups/names-and-codes-listings/names-and-codes-for-administrative-geography/index.html,Thanet District Council,06/08/2013,343039,448.80,Supplies Team,SUP001,Director of Corporate Services and Transformation,Revenue,Supplies And Services
http://www.ons.gov.uk/ons/guide-method/geography/products/names--codes-and-look-ups/names-and-codes-listings/names-and-codes-for-administrative-geography/index.html,Thanet District Council,06/08/2013,342807,2125.00,The Glenwood Hotel,GLE007,Director of Community Services,Revenue,Supplies And Services
http://www.ons.gov.uk/ons/guide-method/geography/products/names--codes-and-look-ups/names-and-codes-listings/names-and-codes-for-administrative-geography/index.html,Thanet District Council,06/08/2013,342758,3026.41,Uk Power Networks Services (Comm)Ltd,UKP003,Director of Operational Services,Revenue,Premises Related Expenditure
http://www.ons.gov.uk/ons/guide-method/geography/products/names--codes-and-look-ups/names-and-codes-listings/names-and-codes-for-administrative-geography/index.html,Thanet District Council,06/08/2013,342843,6017.50,Urban Surveying & Design Ltd,URB005,Director of Corporate Services and Transformation,Balance Sheet,Current Assets
http://www.ons.gov.uk/ons/guide-method/geography/products/names--codes-and-look-ups/names-and-codes-listings/names-and-codes-for-administrative-geography/index.html,Thanet District Council,06/08/2013,343047,970.00,Zebra Training Services Limited,ZEB001,East Kent Shared Services,Revenue,Supplies And Services
http://www.ons.gov.uk/ons/guide-method/geography/products/names--codes-and-look-ups/names-and-codes-listings/names-and-codes-for-administrative-geography/index.html,Thanet District Council,13/08/2013,343043,1257.60,Adm Computer Services Limited,ADM002,Director of Operational Services,Revenue,Premises Related Expenditure
http://www.ons.gov.uk/ons/guide-method/geography/products/names--codes-and-look-ups/names-and-codes-listings/names-and-codes-for-administrative-geography/index.html,Thanet District Council,13/08/2013,343041,1093.40,Albion Fencing Kent Ltd,ALB005,Director of Operational Services,Revenue,Premises Related Expenditure
http://www.ons.gov.uk/ons/guide-method/geography/products/names--codes-and-look-ups/names-and-codes-listings/names-and-codes-for-administrative-geography/index.html,Thanet District Council,13/08/2013,343084,484.00,All Access Ltd,ALL031,Director of Corporate Services and Transformation,Balance Sheet,Current Assets
http://www.ons.gov.uk/ons/guide-method/geography/products/names--codes-and-look-ups/names-and-codes-listings/names-and-codes-for-administrative-geography/index.html,Thanet District Council,13/08/2013,343439,268.62,Allstar Business Solutions Ltd,ALL038,Director of Operational Services,Revenue,Transport Related Expenditure
http://www.ons.gov.uk/ons/guide-method/geography/products/names--codes-and-look-ups/names-and-codes-listings/names-and-codes-for-administrative-geography/index.html,Thanet District Council,13/08/2013,343427,260.00,Amber Driver Training,AMB004,Director of Operational Services,Revenue,Supplies And Services
http://www.ons.gov.uk/ons/guide-method/geography/products/names--codes-and-look-ups/names-and-codes-listings/names-and-codes-for-administrative-geography/index.html,Thanet District Council,13/08/2013,343391,775.00,Bayly Environmental Services Ltd,BAY001,Director of Operational Services,Revenue,Premises Related Expenditure
http://www.ons.gov.uk/ons/guide-method/geography/products/names--codes-and-look-ups/names-and-codes-listings/names-and-codes-for-administrative-geography/index.html,Thanet District Council,13/08/2013,343467,3258.10,Berryman,BER001,Director of Operational Services,Revenue,Supplies And Services
http://www.ons.gov.uk/ons/guide-method/geography/products/names--codes-and-look-ups/names-and-codes-listings/names-and-codes-for-administrative-geography/index.html,Thanet District Council,13/08/2013,343502,4557.68,Better Beaches Ltd,BET009,Director of Operational Services,Revenue,Supplies And Services
http://www.ons.gov.uk/ons/guide-method/geography/products/names--codes-and-look-ups/names-and-codes-listings/names-and-codes-for-administrative-geography/index.html,Thanet District Council,13/08/2013,343117,3150.00,Blue Sail Consulting Ltd,BLU011,Director of Community Services,Revenue,Supplies And Services
http://www.ons.gov.uk/ons/guide-method/geography/products/names--codes-and-look-ups/names-and-codes-listings/names-and-codes-for-administrative-geography/index.html,Thanet District Council,13/08/2013,343121,1520.00,Bowman Maintenance Contracting,BMC001,Director of Operational Services,Revenue,Supplies And Services
http://www.ons.gov.uk/ons/guide-method/geography/products/names--codes-and-look-ups/names-and-codes-listings/names-and-codes-for-administrative-geography/index.html,Thanet District Council,13/08/2013,343429,257.00,Bowman Maintenance Contracting,BMC001,Director of Operational Services,Revenue,Supplies And Services
http://www.ons.gov.uk/ons/guide-method/geography/products/names--codes-and-look-ups/names-and-codes-listings/names-and-codes-for-administrative-geography/index.html,Thanet District Council,13/08/2013,343434,2000.00,Bramling Construction Ltd,BRA020,Director of Corporate Services and Transformation,Balance Sheet,Long Term Assets
http://www.ons.gov.uk/ons/guide-method/geography/products/names--codes-and-look-ups/names-and-codes-listings/names-and-codes-for-administrative-geography/index.html,Thanet District Council,13/08/2013,343518,1584.00,Bridge Security Cctv Ltd,BRI039,Director of Operational Services,Revenue,Supplies And Services
http://www.ons.gov.uk/ons/guide-method/geography/products/names--codes-and-look-ups/names-and-codes-listings/names-and-codes-for-administrative-geography/index.html,Thanet District Council,13/08/2013,343419,440.42,British Destinations,BRA002,Director of Community Services,Revenue,Supplies And Services
http://www.ons.gov.uk/ons/guide-method/geography/products/names--codes-and-look-ups/names-and-codes-listings/names-and-codes-for-administrative-geography/index.html,Thanet District Council,13/08/2013,342524,63233.14,Canterbury City Council,CAN004,Director of Operational Services,Revenue,Premises Related Expenditure
http://www.ons.gov.uk/ons/guide-method/geography/products/names--codes-and-look-ups/names-and-codes-listings/names-and-codes-for-administrative-geography/index.html,Thanet District Council,13/08/2013,343348,393.37,Capt G Tully,TUL001,Director of Operational Services,Revenue,Supplies And Services
http://www.ons.gov.uk/ons/guide-method/geography/products/names--codes-and-look-ups/names-and-codes-listings/names-and-codes-for-administrative-geography/index.html,Thanet District Council,13/08/2013,343184,1138.50,Carol Peters,PET003,Director of Community Services,Revenue,Supplies And Services
http://www.ons.gov.uk/ons/guide-method/geography/products/names--codes-and-look-ups/names-and-codes-listings/names-and-codes-for-administrative-geography/index.html,Thanet District Council,13/08/2013,338561,562.50,Circus 2000 Ltd,CIR005,Director of Community Services,Revenue,Supplies And Services
http://www.ons.gov.uk/ons/guide-method/geography/products/names--codes-and-look-ups/names-and-codes-listings/names-and-codes-for-administrative-geography/index.html,Thanet District Council,13/08/2013,343109,325.00,Clare Maclean-Bell,MAC020,Director of Community Services,Revenue,Supplies And Services
http://www.ons.gov.uk/ons/guide-method/geography/products/names--codes-and-look-ups/names-and-codes-listings/names-and-codes-for-administrative-geography/index.html,Thanet District Council,13/08/2013,343185,1350.00,Clare Maclean-Bell,MAC020,Director of Community Services,Revenue,Supplies And Services
http://www.ons.gov.uk/ons/guide-method/geography/products/names--codes-and-look-ups/names-and-codes-listings/names-and-codes-for-administrative-geography/index.html,Thanet District Council,13/08/2013,343394,511.04,Cobalt Telephone Technologies Ltd,COB002,Director of Operational Services,Revenue,Supplies And Services
http://www.ons.gov.uk/ons/guide-method/geography/products/names--codes-and-look-ups/names-and-codes-listings/names-and-codes-for-administrative-geography/index.html,Thanet District Council,13/08/2013,343444,1062.60,Cobalt Telephone Technologies Ltd,COB002,Director of Operational Services,Revenue,Supplies And Services
http://www.ons.gov.uk/ons/guide-method/geography/products/names--codes-and-look-ups/names-and-codes-listings/names-and-codes-for-administrative-geography/index.html,Thanet District Council,13/08/2013,343428,665.45,Colleen Chick,CHI019,Director of Corporate Services and Transformation,Revenue,Supplies And Services
http://www.ons.gov.uk/ons/guide-method/geography/products/names--codes-and-look-ups/names-and-codes-listings/names-and-codes-for-administrative-geography/index.html,Thanet District Council,13/08/2013,343478,370.00,Davis Coleman Limited,DAV025,Director of Community Services,Revenue,Supplies And Services
http://www.ons.gov.uk/ons/guide-method/geography/products/names--codes-and-look-ups/names-and-codes-listings/names-and-codes-for-administrative-geography/index.html,Thanet District Council,13/08/2013,343135,1725.00,Dawsonrentals Sweepers,DAW003,Director of Operational Services,Revenue,Transport Related Expenditure
http://www.ons.gov.uk/ons/guide-method/geography/products/names--codes-and-look-ups/names-and-codes-listings/names-and-codes-for-administrative-geography/index.html,Thanet District Council,13/08/2013,343385,540.00,Dover District Council,DOV001,Director of Corporate Services and Transformation,Revenue,Employees
http://www.ons.gov.uk/ons/guide-method/geography/products/names--codes-and-look-ups/names-and-codes-listings/names-and-codes-for-administrative-geography/index.html,Thanet District Council,13/08/2013,343386,390.00,Dover District Council,DOV001,Director of Corporate Services and Transformation,Revenue,Employees
http://www.ons.gov.uk/ons/guide-method/geography/products/names--codes-and-look-ups/names-and-codes-listings/names-and-codes-for-administrative-geography/index.html,Thanet District Council,13/08/2013,343387,514.32,Dover District Council,DOV001,Director of Corporate Services and Transformation,Revenue,Supplies And Services
http://www.ons.gov.uk/ons/guide-method/geography/products/names--codes-and-look-ups/names-and-codes-listings/names-and-codes-for-administrative-geography/index.html,Thanet District Council,13/08/2013,343388,712.00,Dover District Council,DOV001,East Kent Shared Services,Revenue,Employees
http://www.ons.gov.uk/ons/guide-method/geography/products/names--codes-and-look-ups/names-and-codes-listings/names-and-codes-for-administrative-geography/index.html,Thanet District Council,13/08/2013,343390,21086.68,Dover District Council,DOV001,Director of Corporate Services and Transformation,Revenue,Supplies And Services
http://www.ons.gov.uk/ons/guide-method/geography/products/names--codes-and-look-ups/names-and-codes-listings/names-and-codes-for-administrative-geography/index.html,Thanet District Council,13/08/2013,343350,1775.00,Dr R K Chhabra,CHH001,Director of Operational Services,Revenue,Supplies And Services
http://www.ons.gov.uk/ons/guide-method/geography/products/names--codes-and-look-ups/names-and-codes-listings/names-and-codes-for-administrative-geography/index.html,Thanet District Council,13/08/2013,343510,1380.00,Drain Man & Plumbing,DRA006,Director of Corporate Services and Transformation,Balance Sheet,Current Assets
http://www.ons.gov.uk/ons/guide-method/geography/products/names--codes-and-look-ups/names-and-codes-listings/names-and-codes-for-administrative-geography/index.html,Thanet District Council,13/08/2013,343211,788.52,E Saunders Margate Ltd,SAU001,Director of Corporate Services and Transformation,Balance Sheet,Current Assets
http://www.ons.gov.uk/ons/guide-method/geography/products/names--codes-and-look-ups/names-and-codes-listings/names-and-codes-for-administrative-geography/index.html,Thanet District Council,13/08/2013,343495,1350.00,East Kent Housing Ltd,EKH002,Director of Corporate Services and Transformation,Revenue,Supplies And Services
http://www.ons.gov.uk/ons/guide-method/geography/products/names--codes-and-look-ups/names-and-codes-listings/names-and-codes-for-administrative-geography/index.html,Thanet District Council,13/08/2013,343223,324.29,Edf Energy 1 Ltd,SEE012,Director of Operational Services,Revenue,Premises Related Expenditure
http://www.ons.gov.uk/ons/guide-method/geography/products/names--codes-and-look-ups/names-and-codes-listings/names-and-codes-for-administrative-geography/index.html,Thanet District Council,13/08/2013,343227,282.11,Edf Energy 1 Ltd,SEE012,Director of Operational Services,Revenue,Premises Related Expenditure
http://www.ons.gov.uk/ons/guide-method/geography/products/names--codes-and-look-ups/names-and-codes-listings/names-and-codes-for-administrative-geography/index.html,Thanet District Council,13/08/2013,343230,273.90,Edf Energy 1 Ltd,SEE012,Director of Operational Services,Revenue,Premises Related Expenditure
http://www.ons.gov.uk/ons/guide-method/geography/products/names--codes-and-look-ups/names-and-codes-listings/names-and-codes-for-administrative-geography/index.html,Thanet District Council,13/08/2013,343137,234.13,Ernest Doe & Sons Ltd,ERN003,Director of Operational Services,Revenue,Supplies And Services
http://www.ons.gov.uk/ons/guide-method/geography/products/names--codes-and-look-ups/names-and-codes-listings/names-and-codes-for-administrative-geography/index.html,Thanet District Council,13/08/2013,343139,392.47,Ernest Doe & Sons Ltd,ERN003,Director of Operational Services,Revenue,Supplies And Services
http://www.ons.gov.uk/ons/guide-method/geography/products/names--codes-and-look-ups/names-and-codes-listings/names-and-codes-for-administrative-geography/index.html,Thanet District Council,13/08/2013,343218,374.00,Estuary Services Ltd,EST002,Director of Operational Services,Revenue,Premises Related Expenditure
http://www.ons.gov.uk/ons/guide-method/geography/products/names--codes-and-look-ups/names-and-codes-listings/names-and-codes-for-administrative-geography/index.html,Thanet District Council,13/08/2013,343437,3205.60,Family Mosaic Housing,FAM001,Director of Corporate Services and Transformation,Balance Sheet,Long Term Assets
http://www.ons.gov.uk/ons/guide-method/geography/products/names--codes-and-look-ups/names-and-codes-listings/names-and-codes-for-administrative-geography/index.html,Thanet District Council,13/08/2013,343364,810.00,Florence Court Hotel,FLO003,Director of Community Services,Revenue,Supplies And Services
http://www.ons.gov.uk/ons/guide-method/geography/products/names--codes-and-look-ups/names-and-codes-listings/names-and-codes-for-administrative-geography/index.html,Thanet District Council,13/08/2013,343365,840.00,Florence Court Hotel,FLO003,Director of Community Services,Revenue,Supplies And Services
http://www.ons.gov.uk/ons/guide-method/geography/products/names--codes-and-look-ups/names-and-codes-listings/names-and-codes-for-administrative-geography/index.html,Thanet District Council,13/08/2013,343368,930.00,Florence Court Hotel,FLO003,Director of Community Services,Revenue,Supplies And Services
http://www.ons.gov.uk/ons/guide-method/geography/products/names--codes-and-look-ups/names-and-codes-listings/names-and-codes-for-administrative-geography/index.html,Thanet District Council,13/08/2013,343123,4972.33,Fuel Oils Kent,FUE001,Director of Operational Services,Revenue,Supplies And Services
http://www.ons.gov.uk/ons/guide-method/geography/products/names--codes-and-look-ups/names-and-codes-listings/names-and-codes-for-administrative-geography/index.html,Thanet District Council,13/08/2013,343132,2941.50,Goddard Hester,GOD003,Director of Community Services,Revenue,Supplies And Services
http://www.ons.gov.uk/ons/guide-method/geography/products/names--codes-and-look-ups/names-and-codes-listings/names-and-codes-for-administrative-geography/index.html,Thanet District Council,13/08/2013,343062,330.00,Graham,GRA013,Director of Operational Services,Revenue,Supplies And Services
http://www.ons.gov.uk/ons/guide-method/geography/products/names--codes-and-look-ups/names-and-codes-listings/names-and-codes-for-administrative-geography/index.html,Thanet District Council,13/08/2013,342743,236.41,Hands On Suppliers Ltd,HAN007,Director of Operational Services,Revenue,Supplies And Services
http://www.ons.gov.uk/ons/guide-method/geography/products/names--codes-and-look-ups/names-and-codes-listings/names-and-codes-for-administrative-geography/index.html,Thanet District Council,13/08/2013,342839,315.30,Hands On Suppliers Ltd,HAN007,Director of Operational Services,Revenue,Supplies And Services
http://www.ons.gov.uk/ons/guide-method/geography/products/names--codes-and-look-ups/names-and-codes-listings/names-and-codes-for-administrative-geography/index.html,Thanet District Council,13/08/2013,342875,15398.86,Heath Lambert Limited (Client Money),HEA011,Director of Corporate Services and Transformation,Balance Sheet,Current Assets
http://www.ons.gov.uk/ons/guide-method/geography/products/names--codes-and-look-ups/names-and-codes-listings/names-and-codes-for-administrative-geography/index.html,Thanet District Council,13/08/2013,343349,214.89,Holbrook Revell Electrical Ltd,HOL015,Director of Corporate Services and Transformation,Balance Sheet,Current Assets
http://www.ons.gov.uk/ons/guide-method/geography/products/names--codes-and-look-ups/names-and-codes-listings/names-and-codes-for-administrative-geography/index.html,Thanet District Council,13/08/2013,343349,1738.33,Holbrook Revell Electrical Ltd,HOL015,Director of Operational Services,Revenue,Premises Related Expenditure
http://www.ons.gov.uk/ons/guide-method/geography/products/names--codes-and-look-ups/names-and-codes-listings/names-and-codes-for-administrative-geography/index.html,Thanet District Council,13/08/2013,343177,6982.22,Hr Go Recruitment Ltd,HRG002,Director of Operational Services,Revenue,Employees
http://www.ons.gov.uk/ons/guide-method/geography/products/names--codes-and-look-ups/names-and-codes-listings/names-and-codes-for-administrative-geography/index.html,Thanet District Council,13/08/2013,343480,433.40,Hr Go Recruitment Ltd,HRG002,Director of Operational Services,Revenue,Employees
http://www.ons.gov.uk/ons/guide-method/geography/products/names--codes-and-look-ups/names-and-codes-listings/names-and-codes-for-administrative-geography/index.html,Thanet District Council,13/08/2013,343049,392.40,Hydraquip Hose & Hydraulics,HYD003,Director of Operational Services,Revenue,Supplies And Services
http://www.ons.gov.uk/ons/guide-method/geography/products/names--codes-and-look-ups/names-and-codes-listings/names-and-codes-for-administrative-geography/index.html,Thanet District Council,13/08/2013,343168,3751.68,Hydro-Cleansing Ltd,HYD012,Director of Operational Services,Revenue,Premises Related Expenditure
http://www.ons.gov.uk/ons/guide-method/geography/products/names--codes-and-look-ups/names-and-codes-listings/names-and-codes-for-administrative-geography/index.html,Thanet District Council,13/08/2013,343110,1216.00,Idox Software  Limited,IDO001,Director of Community Services,Revenue,Supplies And Services
http://www.ons.gov.uk/ons/guide-method/geography/products/names--codes-and-look-ups/names-and-codes-listings/names-and-codes-for-administrative-geography/index.html,Thanet District Council,13/08/2013,342835,221.85,Jewson Ltd,JEW001,Director of Operational Services,Revenue,Supplies And Services
http://www.ons.gov.uk/ons/guide-method/geography/products/names--codes-and-look-ups/names-and-codes-listings/names-and-codes-for-administrative-geography/index.html,Thanet District Council,13/08/2013,343435,730.08,John Gale,GAL001,Director of Corporate Services and Transformation,Balance Sheet,Long Term Assets
http://www.ons.gov.uk/ons/guide-method/geography/products/names--codes-and-look-ups/names-and-codes-listings/names-and-codes-for-administrative-geography/index.html,Thanet District Council,13/08/2013,343151,370.00,John Reeve (Plant Hire) Ltd,REE013,Director of Operational Services,Revenue,Transport Related Expenditure
http://www.ons.gov.uk/ons/guide-method/geography/products/names--codes-and-look-ups/names-and-codes-listings/names-and-codes-for-administrative-geography/index.html,Thanet District Council,13/08/2013,343220,230.00,John Reeve (Plant Hire) Ltd,REE013,Director of Operational Services,Revenue,Transport Related Expenditure
http://www.ons.gov.uk/ons/guide-method/geography/products/names--codes-and-look-ups/names-and-codes-listings/names-and-codes-for-administrative-geography/index.html,Thanet District Council,13/08/2013,343496,4000.00,Kent County Council,KCC002,Chief Executive and S151,Revenue,Supplies And Services
http://www.ons.gov.uk/ons/guide-method/geography/products/names--codes-and-look-ups/names-and-codes-listings/names-and-codes-for-administrative-geography/index.html,Thanet District Council,13/08/2013,343421,2492.37,Level 3 Communications (Uk) Ltd,LEV005,Director of Corporate Services and Transformation,Balance Sheet,Current Assets
http://www.ons.gov.uk/ons/guide-method/geography/products/names--codes-and-look-ups/names-and-codes-listings/names-and-codes-for-administrative-geography/index.html,Thanet District Council,13/08/2013,343050,290.00,M D Electrics,MDE001,Director of Operational Services,Revenue,Premises Related Expenditure
http://www.ons.gov.uk/ons/guide-method/geography/products/names--codes-and-look-ups/names-and-codes-listings/names-and-codes-for-administrative-geography/index.html,Thanet District Council,13/08/2013,343051,560.00,M D Electrics,MDE001,Director of Operational Services,Revenue,Premises Related Expenditure
http://www.ons.gov.uk/ons/guide-method/geography/products/names--codes-and-look-ups/names-and-codes-listings/names-and-codes-for-administrative-geography/index.html,Thanet District Council,13/08/2013,343219,380.00,M T Coleman,COL029,Director of Operational Services,Revenue,Transport Related Expenditure
http://www.ons.gov.uk/ons/guide-method/geography/products/names--codes-and-look-ups/names-and-codes-listings/names-and-codes-for-administrative-geography/index.html,Thanet District Council,13/08/2013,343063,259.96,Machine Mart Ltd,MAC003,Director of Operational Services,Revenue,Supplies And Services
http://www.ons.gov.uk/ons/guide-method/geography/products/names--codes-and-look-ups/names-and-codes-listings/names-and-codes-for-administrative-geography/index.html,Thanet District Council,13/08/2013,343343,338.80,Maroon Office Limited,MAR101,Director of Community Services,Revenue,Supplies And Services
http://www.ons.gov.uk/ons/guide-method/geography/products/names--codes-and-look-ups/names-and-codes-listings/names-and-codes-for-administrative-geography/index.html,Thanet District Council,13/08/2013,343138,300.00,Maxwells Grounds Maintenance Ltd,MAX002,Director of Operational Services,Revenue,Premises Related Expenditure
http://www.ons.gov.uk/ons/guide-method/geography/products/names--codes-and-look-ups/names-and-codes-listings/names-and-codes-for-administrative-geography/index.html,Thanet District Council,13/08/2013,343606,6622.15,Med Clean South Ltd,MED015,Director of Operational Services,Revenue,Premises Related Expenditure
http://www.ons.gov.uk/ons/guide-method/geography/products/names--codes-and-look-ups/names-and-codes-listings/names-and-codes-for-administrative-geography/index.html,Thanet District Council,13/08/2013,342752,3100.00,Meridian Membranes,MER018,Director of Corporate Services and Transformation,Balance Sheet,Current Assets
http://www.ons.gov.uk/ons/guide-method/geography/products/names--codes-and-look-ups/names-and-codes-listings/names-and-codes-for-administrative-geography/index.html,Thanet District Council,13/08/2013,343183,700.00,Meter Macs Ltd,MET014,Director of Operational Services,Revenue,Supplies And Services
http://www.ons.gov.uk/ons/guide-method/geography/products/names--codes-and-look-ups/names-and-codes-listings/names-and-codes-for-administrative-geography/index.html,Thanet District Council,13/08/2013,343410,1216.00,Michael Page Finance,PAG008,Director of Corporate Services and Transformation,Revenue,Employees
http://www.ons.gov.uk/ons/guide-method/geography/products/names--codes-and-look-ups/names-and-codes-listings/names-and-codes-for-administrative-geography/index.html,Thanet District Council,13/08/2013,343075,552.65,Morgan Jones Ltd,MOR001,East Kent Shared Services,Revenue,Employees
http://www.ons.gov.uk/ons/guide-method/geography/products/names--codes-and-look-ups/names-and-codes-listings/names-and-codes-for-administrative-geography/index.html,Thanet District Council,13/08/2013,343210,56.00,N J P Contractors,NJP001,Director of Community Services,Revenue,Premises Related Expenditure
http://www.ons.gov.uk/ons/guide-method/geography/products/names--codes-and-look-ups/names-and-codes-listings/names-and-codes-for-administrative-geography/index.html,Thanet District Council,13/08/2013,343210,980.00,N J P Contractors,NJP001,Director of Operational Services,Revenue,Premises Related Expenditure
http://www.ons.gov.uk/ons/guide-method/geography/products/names--codes-and-look-ups/names-and-codes-listings/names-and-codes-for-administrative-geography/index.html,Thanet District Council,13/08/2013,343436,6084.00,Northwood Builders,NOR002,Director of Corporate Services and Transformation,Balance Sheet,Long Term Assets
http://www.ons.gov.uk/ons/guide-method/geography/products/names--codes-and-look-ups/names-and-codes-listings/names-and-codes-for-administrative-geography/index.html,Thanet District Council,13/08/2013,339666,7000.00,Ove Arup & Partners Ltd,ARU004,Director of Community Services,Revenue,Supplies And Services
http://www.ons.gov.uk/ons/guide-method/geography/products/names--codes-and-look-ups/names-and-codes-listings/names-and-codes-for-administrative-geography/index.html,Thanet District Council,13/08/2013,343163,3103.80,Pillory Barn Design Ltd,PIL004,Director of Operational Services,Revenue,Supplies And Services
http://www.ons.gov.uk/ons/guide-method/geography/products/names--codes-and-look-ups/names-and-codes-listings/names-and-codes-for-administrative-geography/index.html,Thanet District Council,13/08/2013,343384,9787.27,Pillory Barn Design Ltd,PIL004,Director of Operational Services,Revenue,Supplies And Services
http://www.ons.gov.uk/ons/guide-method/geography/products/names--codes-and-look-ups/names-and-codes-listings/names-and-codes-for-administrative-geography/index.html,Thanet District Council,13/08/2013,343029,385.27,Probrand Ltd,PRO012,East Kent Shared Services,Revenue,Supplies And Services
http://www.ons.gov.uk/ons/guide-method/geography/products/names--codes-and-look-ups/names-and-codes-listings/names-and-codes-for-administrative-geography/index.html,Thanet District Council,13/08/2013,343046,19983.67,Profile Security Services Limited,PRO018,Director of Operational Services,Revenue,Supplies And Services
http://www.ons.gov.uk/ons/guide-method/geography/products/names--codes-and-look-ups/names-and-codes-listings/names-and-codes-for-administrative-geography/index.html,Thanet District Council,13/08/2013,342820,4142.50,R Cannon,CAN007,Director of Corporate Services and Transformation,Balance Sheet,Long Term Assets
http://www.ons.gov.uk/ons/guide-method/geography/products/names--codes-and-look-ups/names-and-codes-listings/names-and-codes-for-administrative-geography/index.html,Thanet District Council,13/08/2013,343431,945.00,R Cannon,CAN007,Director of Operational Services,Revenue,Premises Related Expenditure
http://www.ons.gov.uk/ons/guide-method/geography/products/names--codes-and-look-ups/names-and-codes-listings/names-and-codes-for-administrative-geography/index.html,Thanet District Council,13/08/2013,343031,840.00,R J Broadley Tree Surgery,RJB002,Director of Operational Services,Revenue,Premises Related Expenditure
http://www.ons.gov.uk/ons/guide-method/geography/products/names--codes-and-look-ups/names-and-codes-listings/names-and-codes-for-administrative-geography/index.html,Thanet District Council,13/08/2013,343407,250.00,R J Broadley Tree Surgery,RJB002,Director of Corporate Services and Transformation,Balance Sheet,Current Assets
http://www.ons.gov.uk/ons/guide-method/geography/products/names--codes-and-look-ups/names-and-codes-listings/names-and-codes-for-administrative-geography/index.html,Thanet District Council,13/08/2013,342552,320.00,Ramsgate Trophies,RTR001,Director of Community Services,Revenue,Supplies And Services
http://www.ons.gov.uk/ons/guide-method/geography/products/names--codes-and-look-ups/names-and-codes-listings/names-and-codes-for-administrative-geography/index.html,Thanet District Council,13/08/2013,343411,500.00,Rogers & Hambidge Ltd,ROG007,Director of Community Services,Revenue,Supplies And Services
http://www.ons.gov.uk/ons/guide-method/geography/products/names--codes-and-look-ups/names-and-codes-listings/names-and-codes-for-administrative-geography/index.html,Thanet District Council,13/08/2013,343208,2574.58,Royal Mail,ROY004,Director of Corporate Services and Transformation,Revenue,Supplies And Services
http://www.ons.gov.uk/ons/guide-method/geography/products/names--codes-and-look-ups/names-and-codes-listings/names-and-codes-for-administrative-geography/index.html,Thanet District Council,13/08/2013,342624,359.45,Shaw Electrical,SHA005,Director of Operational Services,Revenue,Premises Related Expenditure
http://www.ons.gov.uk/ons/guide-method/geography/products/names--codes-and-look-ups/names-and-codes-listings/names-and-codes-for-administrative-geography/index.html,Thanet District Council,13/08/2013,343329,12207.77,Southern Electric,SEL007,Director of Community Services,Revenue,Premises Related Expenditure
http://www.ons.gov.uk/ons/guide-method/geography/products/names--codes-and-look-ups/names-and-codes-listings/names-and-codes-for-administrative-geography/index.html,Thanet District Council,13/08/2013,343369,264.16,Southern Electric,SEL007,Director of Operational Services,Revenue,Premises Related Expenditure
http://www.ons.gov.uk/ons/guide-method/geography/products/names--codes-and-look-ups/names-and-codes-listings/names-and-codes-for-administrative-geography/index.html,Thanet District Council,13/08/2013,343217,1897.14,Southern Water,SWA001,Director of Operational Services,Revenue,Premises Related Expenditure
http://www.ons.gov.uk/ons/guide-method/geography/products/names--codes-and-look-ups/names-and-codes-listings/names-and-codes-for-administrative-geography/index.html,Thanet District Council,13/08/2013,343326,1835.30,Southern Water,SWA001,Director of Operational Services,Revenue,Premises Related Expenditure
http://www.ons.gov.uk/ons/guide-method/geography/products/names--codes-and-look-ups/names-and-codes-listings/names-and-codes-for-administrative-geography/index.html,Thanet District Council,13/08/2013,343332,294.56,Southern Water,SWA001,Director of Operational Services,Revenue,Premises Related Expenditure
http://www.ons.gov.uk/ons/guide-method/geography/products/names--codes-and-look-ups/names-and-codes-listings/names-and-codes-for-administrative-geography/index.html,Thanet District Council,13/08/2013,343333,53.85,Southern Water,SWA001,Director of Community Services,Revenue,Premises Related Expenditure
http://www.ons.gov.uk/ons/guide-method/geography/products/names--codes-and-look-ups/names-and-codes-listings/names-and-codes-for-administrative-geography/index.html,Thanet District Council,13/08/2013,343333,484.70,Southern Water,SWA001,Director of Operational Services,Revenue,Premises Related Expenditure
http://www.ons.gov.uk/ons/guide-method/geography/products/names--codes-and-look-ups/names-and-codes-listings/names-and-codes-for-administrative-geography/index.html,Thanet District Council,13/08/2013,343334,1438.10,Southern Water,SWA001,Director of Operational Services,Revenue,Premises Related Expenditure
http://www.ons.gov.uk/ons/guide-method/geography/products/names--codes-and-look-ups/names-and-codes-listings/names-and-codes-for-administrative-geography/index.html,Thanet District Council,13/08/2013,343338,888.88,Southern Water,SWA001,Director of Operational Services,Revenue,Premises Related Expenditure
http://www.ons.gov.uk/ons/guide-method/geography/products/names--codes-and-look-ups/names-and-codes-listings/names-and-codes-for-administrative-geography/index.html,Thanet District Council,13/08/2013,343375,533.64,Southern Water,SWA001,Director of Operational Services,Revenue,Premises Related Expenditure
http://www.ons.gov.uk/ons/guide-method/geography/products/names--codes-and-look-ups/names-and-codes-listings/names-and-codes-for-administrative-geography/index.html,Thanet District Council,13/08/2013,343377,5891.81,Southern Water,SWA001,Director of Operational Services,Revenue,Premises Related Expenditure
http://www.ons.gov.uk/ons/guide-method/geography/products/names--codes-and-look-ups/names-and-codes-listings/names-and-codes-for-administrative-geography/index.html,Thanet District Council,13/08/2013,343378,290.94,Southern Water,SWA001,Director of Operational Services,Revenue,Premises Related Expenditure
http://www.ons.gov.uk/ons/guide-method/geography/products/names--codes-and-look-ups/names-and-codes-listings/names-and-codes-for-administrative-geography/index.html,Thanet District Council,13/08/2013,343341,531.43,Spaldings  Ltd,SPA006,Director of Operational Services,Revenue,Supplies And Services
http://www.ons.gov.uk/ons/guide-method/geography/products/names--codes-and-look-ups/names-and-codes-listings/names-and-codes-for-administrative-geography/index.html,Thanet District Council,13/08/2013,343519,471.13,Sparshatts Of Kent Ltd,SPA008,Director of Operational Services,Revenue,Transport Related Expenditure
http://www.ons.gov.uk/ons/guide-method/geography/products/names--codes-and-look-ups/names-and-codes-listings/names-and-codes-for-administrative-geography/index.html,Thanet District Council,13/08/2013,342208,11403.02,Straight Plc,STR021,Director of Corporate Services and Transformation,Balance Sheet,Long Term Assets
http://www.ons.gov.uk/ons/guide-method/geography/products/names--codes-and-look-ups/names-and-codes-listings/names-and-codes-for-administrative-geography/index.html,Thanet District Council,13/08/2013,342563,10980.68,Straight Plc,STR021,Director of Corporate Services and Transformation,Balance Sheet,Long Term Assets
http://www.ons.gov.uk/ons/guide-method/geography/products/names--codes-and-look-ups/names-and-codes-listings/names-and-codes-for-administrative-geography/index.html,Thanet District Council,13/08/2013,343408,9692.30,Straight Plc,STR021,Director of Corporate Services and Transformation,Balance Sheet,Long Term Assets
http://www.ons.gov.uk/ons/guide-method/geography/products/names--codes-and-look-ups/names-and-codes-listings/names-and-codes-for-administrative-geography/index.html,Thanet District Council,13/08/2013,343409,22620.35,Straight Plc,STR021,Director of Corporate Services and Transformation,Balance Sheet,Long Term Assets
http://www.ons.gov.uk/ons/guide-method/geography/products/names--codes-and-look-ups/names-and-codes-listings/names-and-codes-for-administrative-geography/index.html,Thanet District Council,13/08/2013,343440,21961.37,Straight Plc,STR021,Director of Corporate Services and Transformation,Balance Sheet,Long Term Assets
http://www.ons.gov.uk/ons/guide-method/geography/products/names--codes-and-look-ups/names-and-codes-listings/names-and-codes-for-administrative-geography/index.html,Thanet District Council,13/08/2013,343488,673.20,Supplies Team,SUP001,Director of Corporate Services and Transformation,Revenue,Supplies And Services
http://www.ons.gov.uk/ons/guide-method/geography/products/names--codes-and-look-ups/names-and-codes-listings/names-and-codes-for-administrative-geography/index.html,Thanet District Council,13/08/2013,343426,684.00,Thanet Waste Services Ltd,TWA001,Director of Operational Services,Revenue,Third Party Payments
http://www.ons.gov.uk/ons/guide-method/geography/products/names--codes-and-look-ups/names-and-codes-listings/names-and-codes-for-administrative-geography/index.html,Thanet District Council,13/08/2013,343318,15000.00,The Dreamland Trust,DRE003,Director of Corporate Services and Transformation,Balance Sheet,Long Term Assets
http://www.ons.gov.uk/ons/guide-method/geography/products/names--codes-and-look-ups/names-and-codes-listings/names-and-codes-for-administrative-geography/index.html,Thanet District Council,13/08/2013,343142,730.55,The History Press Ltd,HIS002,Director of Community Services,Revenue,Supplies And Services
http://www.ons.gov.uk/ons/guide-method/geography/products/names--codes-and-look-ups/names-and-codes-listings/names-and-codes-for-administrative-geography/index.html,Thanet District Council,13/08/2013,343074,700.00,Tim Baker Associates,BAK010,Director of Community Services,Revenue,Supplies And Services
http://www.ons.gov.uk/ons/guide-method/geography/products/names--codes-and-look-ups/names-and-codes-listings/names-and-codes-for-administrative-geography/index.html,Thanet District Council,13/08/2013,343164,3040.00,Urban Surveying & Design Ltd,URB005,Director of Corporate Services and Transformation,Balance Sheet,Current Assets
http://www.ons.gov.uk/ons/guide-method/geography/products/names--codes-and-look-ups/names-and-codes-listings/names-and-codes-for-administrative-geography/index.html,Thanet District Council,13/08/2013,343398,540.60,Viridor Waste Management Ltd,VIR003,Director of Operational Services,Revenue,Supplies And Services
http://www.ons.gov.uk/ons/guide-method/geography/products/names--codes-and-look-ups/names-and-codes-listings/names-and-codes-for-administrative-geography/index.html,Thanet District Council,13/08/2013,343399,294.30,Viridor Waste Management Ltd,VIR003,Director of Operational Services,Revenue,Third Party Payments
http://www.ons.gov.uk/ons/guide-method/geography/products/names--codes-and-look-ups/names-and-codes-listings/names-and-codes-for-administrative-geography/index.html,Thanet District Council,13/08/2013,343400,679.61,Viridor Waste Management Ltd,VIR003,Director of Operational Services,Revenue,Supplies And Services
http://www.ons.gov.uk/ons/guide-method/geography/products/names--codes-and-look-ups/names-and-codes-listings/names-and-codes-for-administrative-geography/index.html,Thanet District Council,13/08/2013,343170,270.00,W Brazil & Bros,BRA001,Director of Operational Services,Revenue,Supplies And Services
http://www.ons.gov.uk/ons/guide-method/geography/products/names--codes-and-look-ups/names-and-codes-listings/names-and-codes-for-administrative-geography/index.html,Thanet District Council,13/08/2013,343188,4812.05,Waste Consulting Llp,WAS005,Director of Operational Services,Revenue,Supplies And Services
http://www.ons.gov.uk/ons/guide-method/geography/products/names--codes-and-look-ups/names-and-codes-listings/names-and-codes-for-administrative-geography/index.html,Thanet District Council,13/08/2013,343118,380.00,Weather2 Limited,WEA008,Director of Operational Services,Revenue,Supplies And Services
http://www.ons.gov.uk/ons/guide-method/geography/products/names--codes-and-look-ups/names-and-codes-listings/names-and-codes-for-administrative-geography/index.html,Thanet District Council,13/08/2013,343126,1257.00,Xma Ltd,XMA001,Director of Operational Services,Revenue,Supplies And Services
http://www.ons.gov.uk/ons/guide-method/geography/products/names--codes-and-look-ups/names-and-codes-listings/names-and-codes-for-administrative-geography/index.html,Thanet District Council,13/08/2013,343355,262.80,Zen Internet Ltd,ZEN001,East Kent Shared Services,Revenue,Supplies And Services
http://www.ons.gov.uk/ons/guide-method/geography/products/names--codes-and-look-ups/names-and-codes-listings/names-and-codes-for-administrative-geography/index.html,Thanet District Council,14/08/2013,343545,1029.61,Dawsonrentals Sweepers,DAW003,Director of Operational Services,Revenue,Transport Related Expenditure
http://www.ons.gov.uk/ons/guide-method/geography/products/names--codes-and-look-ups/names-and-codes-listings/names-and-codes-for-administrative-geography/index.html,Thanet District Council,14/08/2013,343888,252000.00,Gcl Solicitors Llp,GCL002,Director of Corporate Services and Transformation,Balance Sheet,Long Term Assets
http://www.ons.gov.uk/ons/guide-method/geography/products/names--codes-and-look-ups/names-and-codes-listings/names-and-codes-for-administrative-geography/index.html,Thanet District Council,14/08/2013,343530,431.39,Nat West Bank,NWE001,Director of Corporate Services and Transformation,Balance Sheet,Long Term Assets
http://www.ons.gov.uk/ons/guide-method/geography/products/names--codes-and-look-ups/names-and-codes-listings/names-and-codes-for-administrative-geography/index.html,Thanet District Council,14/08/2013,343529,1368.32,Public Works Loan Board,PWL001,Director of Corporate Services and Transformation,Balance Sheet,Current Assets
http://www.ons.gov.uk/ons/guide-method/geography/products/names--codes-and-look-ups/names-and-codes-listings/names-and-codes-for-administrative-geography/index.html,Thanet District Council,14/08/2013,343535,2401.39,Santander,SAN017,Director of Corporate Services and Transformation,Revenue,Supplies And Services
http://www.ons.gov.uk/ons/guide-method/geography/products/names--codes-and-look-ups/names-and-codes-listings/names-and-codes-for-administrative-geography/index.html,Thanet District Council,14/08/2013,343535,800.47,Santander,SAN017,Director of Community Services,Revenue,Supplies And Services
http://www.ons.gov.uk/ons/guide-method/geography/products/names--codes-and-look-ups/names-and-codes-listings/names-and-codes-for-administrative-geography/index.html,Thanet District Council,14/08/2013,343536,994.70,Santander,SAN017,Director of Corporate Services and Transformation,Revenue,Supplies And Services
http://www.ons.gov.uk/ons/guide-method/geography/products/names--codes-and-look-ups/names-and-codes-listings/names-and-codes-for-administrative-geography/index.html,Thanet District Council,14/08/2013,342160,352.00,Shaw Electrical,SHA005,Director of Operational Services,Revenue,Premises Related Expenditure
http://www.ons.gov.uk/ons/guide-method/geography/products/names--codes-and-look-ups/names-and-codes-listings/names-and-codes-for-administrative-geography/index.html,Thanet District Council,14/08/2013,343537,794.42,Worldpay Ltd,WOR008,Director of Operational Services,Revenue,Supplies And Services
http://www.ons.gov.uk/ons/guide-method/geography/products/names--codes-and-look-ups/names-and-codes-listings/names-and-codes-for-administrative-geography/index.html,Thanet District Council,14/08/2013,343538,1796.20,Worldpay Ltd,WOR008,Director of Corporate Services and Transformation,Revenue,Supplies And Services
http://www.ons.gov.uk/ons/guide-method/geography/products/names--codes-and-look-ups/names-and-codes-listings/names-and-codes-for-administrative-geography/index.html,Thanet District Council,14/08/2013,343855,200000.00,Your Leisure Kent Limited,YOU016,Director of Corporate Services and Transformation,Balance Sheet,Long Term Assets
http://www.ons.gov.uk/ons/guide-method/geography/products/names--codes-and-look-ups/names-and-codes-listings/names-and-codes-for-administrative-geography/index.html,Thanet District Council,16/08/2013,343953,1409.88,Co-Operative Bank Paypoint,COO018,Director of Corporate Services and Transformation,Revenue,Supplies And Services
http://www.ons.gov.uk/ons/guide-method/geography/products/names--codes-and-look-ups/names-and-codes-listings/names-and-codes-for-administrative-geography/index.html,Thanet District Council,16/08/2013,343953,469.96,Co-Operative Bank Paypoint,COO018,Director of Community Services,Revenue,Supplies And Services
http://www.ons.gov.uk/ons/guide-method/geography/products/names--codes-and-look-ups/names-and-codes-listings/names-and-codes-for-administrative-geography/index.html,Thanet District Council,16/08/2013,343964,266.99,Nat West Bank,NWE001,Director of Corporate Services and Transformation,Revenue,Supplies And Services
http://www.ons.gov.uk/ons/guide-method/geography/products/names--codes-and-look-ups/names-and-codes-listings/names-and-codes-for-administrative-geography/index.html,Thanet District Council,16/08/2013,343955,383.62,Worldpay Ltd,WOR008,Director of Corporate Services and Transformation,Revenue,Supplies And Services
http://www.ons.gov.uk/ons/guide-method/geography/products/names--codes-and-look-ups/names-and-codes-listings/names-and-codes-for-administrative-geography/index.html,Thanet District Council,16/08/2013,343962,1676.49,Worldpay Ltd,WOR008,Director of Corporate Services and Transformation,Revenue,Supplies And Services
http://www.ons.gov.uk/ons/guide-method/geography/products/names--codes-and-look-ups/names-and-codes-listings/names-and-codes-for-administrative-geography/index.html,Thanet District Council,19/08/2013,N/A,381.94,REDACTED PERSONAL DATA,N/A,Director of Operational Services,Revenue,Transport Related Expenditure
http://www.ons.gov.uk/ons/guide-method/geography/products/names--codes-and-look-ups/names-and-codes-listings/names-and-codes-for-administrative-geography/index.html,Thanet District Council,19/08/2013,N/A,1058.73,REDACTED PERSONAL DATA,N/A,East Kent Shared Services,Revenue,Transport Related Expenditure
http://www.ons.gov.uk/ons/guide-method/geography/products/names--codes-and-look-ups/names-and-codes-listings/names-and-codes-for-administrative-geography/index.html,Thanet District Council,19/08/2013,N/A,278.89,REDACTED PERSONAL DATA,N/A,Director of Operational Services,Revenue,Transport Related Expenditure
http://www.ons.gov.uk/ons/guide-method/geography/products/names--codes-and-look-ups/names-and-codes-listings/names-and-codes-for-administrative-geography/index.html,Thanet District Council,19/08/2013,N/A,306.31,REDACTED PERSONAL DATA,N/A,East Kent Shared Services,Revenue,Transport Related Expenditure
http://www.ons.gov.uk/ons/guide-method/geography/products/names--codes-and-look-ups/names-and-codes-listings/names-and-codes-for-administrative-geography/index.html,Thanet District Council,19/08/2013,N/A,339.40,REDACTED PERSONAL DATA,N/A,Director of Community Services,Revenue,Transport Related Expenditure
http://www.ons.gov.uk/ons/guide-method/geography/products/names--codes-and-look-ups/names-and-codes-listings/names-and-codes-for-administrative-geography/index.html,Thanet District Council,19/08/2013,N/A,303.68,REDACTED PERSONAL DATA,N/A,East Kent Shared Services,Revenue,Transport Related Expenditure
http://www.ons.gov.uk/ons/guide-method/geography/products/names--codes-and-look-ups/names-and-codes-listings/names-and-codes-for-administrative-geography/index.html,Thanet District Council,19/08/2013,N/A,376.27,REDACTED PERSONAL DATA,N/A,Director of Corporate Services and Transformation,Revenue,Transport Related Expenditure
http://www.ons.gov.uk/ons/guide-method/geography/products/names--codes-and-look-ups/names-and-codes-listings/names-and-codes-for-administrative-geography/index.html,Thanet District Council,19/08/2013,N/A,250.53,REDACTED PERSONAL DATA,N/A,Director of Community Services,Revenue,Transport Related Expenditure
http://www.ons.gov.uk/ons/guide-method/geography/products/names--codes-and-look-ups/names-and-codes-listings/names-and-codes-for-administrative-geography/index.html,Thanet District Council,19/08/2013,N/A,286.46,REDACTED PERSONAL DATA,N/A,Director of Community Services,Revenue,Transport Related Expenditure
http://www.ons.gov.uk/ons/guide-method/geography/products/names--codes-and-look-ups/names-and-codes-listings/names-and-codes-for-administrative-geography/index.html,Thanet District Council,19/08/2013,N/A,440.56,REDACTED PERSONAL DATA,N/A,Director of Operational Services,Revenue,Transport Related Expenditure
http://www.ons.gov.uk/ons/guide-method/geography/products/names--codes-and-look-ups/names-and-codes-listings/names-and-codes-for-administrative-geography/index.html,Thanet District Council,19/08/2013,N/A,290.24,REDACTED PERSONAL DATA,N/A,Director of Corporate Services and Transformation,Revenue,Transport Related Expenditure
http://www.ons.gov.uk/ons/guide-method/geography/products/names--codes-and-look-ups/names-and-codes-listings/names-and-codes-for-administrative-geography/index.html,Thanet District Council,19/08/2013,N/A,396.00,REDACTED PERSONAL DATA,N/A,Director of Community Services,Revenue,Transport Related Expenditure
http://www.ons.gov.uk/ons/guide-method/geography/products/names--codes-and-look-ups/names-and-codes-listings/names-and-codes-for-administrative-geography/index.html,Thanet District Council,19/08/2013,N/A,4.20,REDACTED PERSONAL DATA,N/A,Director of Community Services,Revenue,Supplies And Services
http://www.ons.gov.uk/ons/guide-method/geography/products/names--codes-and-look-ups/names-and-codes-listings/names-and-codes-for-administrative-geography/index.html,Thanet District Council,19/08/2013,N/A,286.25,REDACTED PERSONAL DATA,N/A,East Kent Shared Services,Revenue,Transport Related Expenditure
http://www.ons.gov.uk/ons/guide-method/geography/products/names--codes-and-look-ups/names-and-codes-listings/names-and-codes-for-administrative-geography/index.html,Thanet District Council,19/08/2013,N/A,188.00,REDACTED PERSONAL DATA,N/A,Director of Community Services,Revenue,Supplies And Services
http://www.ons.gov.uk/ons/guide-method/geography/products/names--codes-and-look-ups/names-and-codes-listings/names-and-codes-for-administrative-geography/index.html,Thanet District Council,19/08/2013,N/A,1311.90,REDACTED PERSONAL DATA,N/A,Director of Community Services,Revenue,Transport Related Expenditure
http://www.ons.gov.uk/ons/guide-method/geography/products/names--codes-and-look-ups/names-and-codes-listings/names-and-codes-for-administrative-geography/index.html,Thanet District Council,19/08/2013,N/A,357.54,REDACTED PERSONAL DATA,N/A,East Kent Shared Services,Revenue,Transport Related Expenditure
http://www.ons.gov.uk/ons/guide-method/geography/products/names--codes-and-look-ups/names-and-codes-listings/names-and-codes-for-administrative-geography/index.html,Thanet District Council,19/08/2013,N/A,574.80,REDACTED PERSONAL DATA,N/A,East Kent Shared Services,Revenue,Transport Related Expenditure
http://www.ons.gov.uk/ons/guide-method/geography/products/names--codes-and-look-ups/names-and-codes-listings/names-and-codes-for-administrative-geography/index.html,Thanet District Council,19/08/2013,N/A,539.82,REDACTED PERSONAL DATA,N/A,East Kent Shared Services,Revenue,Transport Related Expenditure
http://www.ons.gov.uk/ons/guide-method/geography/products/names--codes-and-look-ups/names-and-codes-listings/names-and-codes-for-administrative-geography/index.html,Thanet District Council,19/08/2013,N/A,363.03,REDACTED PERSONAL DATA,N/A,East Kent Shared Services,Revenue,Transport Related Expenditure
http://www.ons.gov.uk/ons/guide-method/geography/products/names--codes-and-look-ups/names-and-codes-listings/names-and-codes-for-administrative-geography/index.html,Thanet District Council,20/08/2013,343844,1036.00,All Access Ltd,ALL031,Director of Community Services,Revenue,Premises Related Expenditure
http://www.ons.gov.uk/ons/guide-method/geography/products/names--codes-and-look-ups/names-and-codes-listings/names-and-codes-for-administrative-geography/index.html,Thanet District Council,20/08/2013,343524,360.00,All Sign Solutions Ltd,ALL002,Director of Community Services,Revenue,Supplies And Services
http://www.ons.gov.uk/ons/guide-method/geography/products/names--codes-and-look-ups/names-and-codes-listings/names-and-codes-for-administrative-geography/index.html,Thanet District Council,20/08/2013,343526,580.00,All Sign Solutions Ltd,ALL002,Director of Community Services,Revenue,Supplies And Services
http://www.ons.gov.uk/ons/guide-method/geography/products/names--codes-and-look-ups/names-and-codes-listings/names-and-codes-for-administrative-geography/index.html,Thanet District Council,20/08/2013,343932,233.40,Allstar Business Solutions Ltd,ALL038,Director of Operational Services,Revenue,Transport Related Expenditure
http://www.ons.gov.uk/ons/guide-method/geography/products/names--codes-and-look-ups/names-and-codes-listings/names-and-codes-for-administrative-geography/index.html,Thanet District Council,20/08/2013,343136,900.00,Andy Morris,MOR028,Director of Community Services,Revenue,Supplies And Services
http://www.ons.gov.uk/ons/guide-method/geography/products/names--codes-and-look-ups/names-and-codes-listings/names-and-codes-for-administrative-geography/index.html,Thanet District Council,20/08/2013,344088,4557.68,Better Beaches Ltd,BET009,Director of Operational Services,Revenue,Supplies And Services
http://www.ons.gov.uk/ons/guide-method/geography/products/names--codes-and-look-ups/names-and-codes-listings/names-and-codes-for-administrative-geography/index.html,Thanet District Council,20/08/2013,343903,2800.00,Bidwells Llp,BID001,Director of Corporate Services and Transformation,Balance Sheet,Long Term Assets
http://www.ons.gov.uk/ons/guide-method/geography/products/names--codes-and-look-ups/names-and-codes-listings/names-and-codes-for-administrative-geography/index.html,Thanet District Council,20/08/2013,343561,2090.77,Bridge Security Cctv Ltd,BRI039,Director of Operational Services,Revenue,Supplies And Services
http://www.ons.gov.uk/ons/guide-method/geography/products/names--codes-and-look-ups/names-and-codes-listings/names-and-codes-for-administrative-geography/index.html,Thanet District Council,20/08/2013,343564,311.10,Bridge Security Cctv Ltd,BRI039,Director of Operational Services,Revenue,Supplies And Services
http://www.ons.gov.uk/ons/guide-method/geography/products/names--codes-and-look-ups/names-and-codes-listings/names-and-codes-for-administrative-geography/index.html,Thanet District Council,20/08/2013,343565,542.88,Bridge Security Cctv Ltd,BRI039,Director of Operational Services,Revenue,Supplies And Services
http://www.ons.gov.uk/ons/guide-method/geography/products/names--codes-and-look-ups/names-and-codes-listings/names-and-codes-for-administrative-geography/index.html,Thanet District Council,20/08/2013,343423,1082.75,Bt Payment Services Ltd,BTE003,Director of Corporate Services and Transformation,Revenue,Supplies And Services
http://www.ons.gov.uk/ons/guide-method/geography/products/names--codes-and-look-ups/names-and-codes-listings/names-and-codes-for-administrative-geography/index.html,Thanet District Council,20/08/2013,343456,5152.14,Canterbury Christ Church University,CAN006,Director of Operational Services,Revenue,Premises Related Expenditure
http://www.ons.gov.uk/ons/guide-method/geography/products/names--codes-and-look-ups/names-and-codes-listings/names-and-codes-for-administrative-geography/index.html,Thanet District Council,20/08/2013,344034,248.96,Channel Commercials Plc,CCO001,Director of Operational Services,Revenue,Transport Related Expenditure
http://www.ons.gov.uk/ons/guide-method/geography/products/names--codes-and-look-ups/names-and-codes-listings/names-and-codes-for-administrative-geography/index.html,Thanet District Council,20/08/2013,344091,800.00,Chegworth Graphic Services (Kent)Ltd,CHE020,Director of Community Services,Revenue,Supplies And Services
http://www.ons.gov.uk/ons/guide-method/geography/products/names--codes-and-look-ups/names-and-codes-listings/names-and-codes-for-administrative-geography/index.html,Thanet District Council,20/08/2013,338562,1968.75,Circus 2000 Ltd,CIR005,Director of Community Services,Revenue,Supplies And Services
http://www.ons.gov.uk/ons/guide-method/geography/products/names--codes-and-look-ups/names-and-codes-listings/names-and-codes-for-administrative-geography/index.html,Thanet District Council,20/08/2013,343566,340.00,Climate Cooling,CLI018,Director of Operational Services,Revenue,Supplies And Services
http://www.ons.gov.uk/ons/guide-method/geography/products/names--codes-and-look-ups/names-and-codes-listings/names-and-codes-for-administrative-geography/index.html,Thanet District Council,20/08/2013,342747,384.00,Crystal4m3 Ltd,CRY002,Director of Corporate Services and Transformation,Revenue,Supplies And Services
http://www.ons.gov.uk/ons/guide-method/geography/products/names--codes-and-look-ups/names-and-codes-listings/names-and-codes-for-administrative-geography/index.html,Thanet District Council,20/08/2013,342747,646.00,Crystal4m3 Ltd,CRY002,Director of Community Services,Revenue,Supplies And Services
http://www.ons.gov.uk/ons/guide-method/geography/products/names--codes-and-look-ups/names-and-codes-listings/names-and-codes-for-administrative-geography/index.html,Thanet District Council,20/08/2013,343957,208.78,Dennis Eagle Ltd,DEN005,Director of Operational Services,Revenue,Transport Related Expenditure
http://www.ons.gov.uk/ons/guide-method/geography/products/names--codes-and-look-ups/names-and-codes-listings/names-and-codes-for-administrative-geography/index.html,Thanet District Council,20/08/2013,343381,410.00,Dg Consultancy Ltd,DGC002,Director of Corporate Services and Transformation,Revenue,Supplies And Services
http://www.ons.gov.uk/ons/guide-method/geography/products/names--codes-and-look-ups/names-and-codes-listings/names-and-codes-for-administrative-geography/index.html,Thanet District Council,20/08/2013,344111,1647.00,Elkington & Fife Llp,ELK002,Director of Corporate Services and Transformation,Balance Sheet,Long Term Assets
http://www.ons.gov.uk/ons/guide-method/geography/products/names--codes-and-look-ups/names-and-codes-listings/names-and-codes-for-administrative-geography/index.html,Thanet District Council,20/08/2013,343913,3600.00,Esri (Uk) Ltd,ESR001,East Kent Shared Services,Revenue,Employees
http://www.ons.gov.uk/ons/guide-method/geography/products/names--codes-and-look-ups/names-and-codes-listings/names-and-codes-for-administrative-geography/index.html,Thanet District Council,20/08/2013,343579,1710.00,Fleet (Line Markers) Ltd,FLE008,Director of Operational Services,Revenue,Supplies And Services
http://www.ons.gov.uk/ons/guide-method/geography/products/names--codes-and-look-ups/names-and-codes-listings/names-and-codes-for-administrative-geography/index.html,Thanet District Council,20/08/2013,343603,3585.00,Fuel Oils Kent,FUE001,Director of Operational Services,Revenue,Supplies And Services
http://www.ons.gov.uk/ons/guide-method/geography/products/names--codes-and-look-ups/names-and-codes-listings/names-and-codes-for-administrative-geography/index.html,Thanet District Council,20/08/2013,343860,700.00,G Chittenden,CHI001,Director of Operational Services,Revenue,Premises Related Expenditure
http://www.ons.gov.uk/ons/guide-method/geography/products/names--codes-and-look-ups/names-and-codes-listings/names-and-codes-for-administrative-geography/index.html,Thanet District Council,20/08/2013,343861,30051.68,G Chittenden,CHI001,Director of Operational Services,Revenue,Premises Related Expenditure
http://www.ons.gov.uk/ons/guide-method/geography/products/names--codes-and-look-ups/names-and-codes-listings/names-and-codes-for-administrative-geography/index.html,Thanet District Council,20/08/2013,344165,690.00,G Chittenden,CHI001,Director of Operational Services,Revenue,Premises Related Expenditure
http://www.ons.gov.uk/ons/guide-method/geography/products/names--codes-and-look-ups/names-and-codes-listings/names-and-codes-for-administrative-geography/index.html,Thanet District Council,20/08/2013,344010,250.00,Great West Autos Ltd,GRE008,Director of Operational Services,Revenue,Supplies And Services
http://www.ons.gov.uk/ons/guide-method/geography/products/names--codes-and-look-ups/names-and-codes-listings/names-and-codes-for-administrative-geography/index.html,Thanet District Council,20/08/2013,343413,419.56,Heath Lambert Limited (Client Money),HEA011,Director of Corporate Services and Transformation,Balance Sheet,Current Assets
http://www.ons.gov.uk/ons/guide-method/geography/products/names--codes-and-look-ups/names-and-codes-listings/names-and-codes-for-administrative-geography/index.html,Thanet District Council,20/08/2013,343863,397.50,Heath Lambert Limited (Client Money),HEA011,Director of Corporate Services and Transformation,Balance Sheet,Current Assets
http://www.ons.gov.uk/ons/guide-method/geography/products/names--codes-and-look-ups/names-and-codes-listings/names-and-codes-for-administrative-geography/index.html,Thanet District Council,20/08/2013,342877,3769.80,Hem Des Llp,HEM007,Director of Corporate Services and Transformation,Balance Sheet,Long Term Assets
http://www.ons.gov.uk/ons/guide-method/geography/products/names--codes-and-look-ups/names-and-codes-listings/names-and-codes-for-administrative-geography/index.html,Thanet District Council,20/08/2013,343629,499.50,Hr Go Recruitment Ltd,HRG002,Director of Operational Services,Revenue,Employees
http://www.ons.gov.uk/ons/guide-method/geography/products/names--codes-and-look-ups/names-and-codes-listings/names-and-codes-for-administrative-geography/index.html,Thanet District Council,20/08/2013,343630,4540.75,Hr Go Recruitment Ltd,HRG002,Director of Operational Services,Revenue,Employees
http://www.ons.gov.uk/ons/guide-method/geography/products/names--codes-and-look-ups/names-and-codes-listings/names-and-codes-for-administrative-geography/index.html,Thanet District Council,20/08/2013,343631,9031.69,Hr Go Recruitment Ltd,HRG002,Director of Operational Services,Revenue,Employees
http://www.ons.gov.uk/ons/guide-method/geography/products/names--codes-and-look-ups/names-and-codes-listings/names-and-codes-for-administrative-geography/index.html,Thanet District Council,20/08/2013,343990,413.70,Hr Go Recruitment Ltd,HRG002,Director of Operational Services,Revenue,Employees
http://www.ons.gov.uk/ons/guide-method/geography/products/names--codes-and-look-ups/names-and-codes-listings/names-and-codes-for-administrative-geography/index.html,Thanet District Council,20/08/2013,343909,700.00,Ifzw Maintenance Ltd,IFZ001,Director of Operational Services,Revenue,Supplies And Services
http://www.ons.gov.uk/ons/guide-method/geography/products/names--codes-and-look-ups/names-and-codes-listings/names-and-codes-for-administrative-geography/index.html,Thanet District Council,20/08/2013,343515,2673.00,Ihs (Global) Ltd,IHS001,Director of Community Services,Revenue,Supplies And Services
http://www.ons.gov.uk/ons/guide-method/geography/products/names--codes-and-look-ups/names-and-codes-listings/names-and-codes-for-administrative-geography/index.html,Thanet District Council,20/08/2013,343581,750.00,Imray Laurie Norie & Wilson Ltd,IMR001,Director of Operational Services,Revenue,Supplies And Services
http://www.ons.gov.uk/ons/guide-method/geography/products/names--codes-and-look-ups/names-and-codes-listings/names-and-codes-for-administrative-geography/index.html,Thanet District Council,20/08/2013,343358,9758.75,J Rospo Building Contractors,ROS001,Director of Operational Services,Revenue,Premises Related Expenditure
http://www.ons.gov.uk/ons/guide-method/geography/products/names--codes-and-look-ups/names-and-codes-listings/names-and-codes-for-administrative-geography/index.html,Thanet District Council,20/08/2013,343362,420.00,John O'Neil,ONE005,Director of Community Services,Revenue,Supplies And Services
http://www.ons.gov.uk/ons/guide-method/geography/products/names--codes-and-look-ups/names-and-codes-listings/names-and-codes-for-administrative-geography/index.html,Thanet District Council,20/08/2013,343556,230.00,John Reeve (Plant Hire) Ltd,REE013,Director of Operational Services,Revenue,Transport Related Expenditure
http://www.ons.gov.uk/ons/guide-method/geography/products/names--codes-and-look-ups/names-and-codes-listings/names-and-codes-for-administrative-geography/index.html,Thanet District Council,20/08/2013,343816,277.50,John Reeve (Plant Hire) Ltd,REE013,Director of Operational Services,Revenue,Transport Related Expenditure
http://www.ons.gov.uk/ons/guide-method/geography/products/names--codes-and-look-ups/names-and-codes-listings/names-and-codes-for-administrative-geography/index.html,Thanet District Council,20/08/2013,343605,942.50,Kaplan Financial Limited,KAP002,East Kent Shared Services,Revenue,Employees
http://www.ons.gov.uk/ons/guide-method/geography/products/names--codes-and-look-ups/names-and-codes-listings/names-and-codes-for-administrative-geography/index.html,Thanet District Council,20/08/2013,344094,239268.00,Kent & Medway Towns Fire Authority,KMT001,Director of Corporate Services and Transformation,Balance Sheet,Reserves
http://www.ons.gov.uk/ons/guide-method/geography/products/names--codes-and-look-ups/names-and-codes-listings/names-and-codes-for-administrative-geography/index.html,Thanet District Council,20/08/2013,343533,5000.00,Kent County Council,KCC002,Director of Community Services,Revenue,Premises Related Expenditure
http://www.ons.gov.uk/ons/guide-method/geography/products/names--codes-and-look-ups/names-and-codes-listings/names-and-codes-for-administrative-geography/index.html,Thanet District Council,20/08/2013,344095,3534463.00,Kent County Council,KCC022,Director of Corporate Services and Transformation,Balance Sheet,Reserves
http://www.ons.gov.uk/ons/guide-method/geography/products/names--codes-and-look-ups/names-and-codes-listings/names-and-codes-for-administrative-geography/index.html,Thanet District Council,20/08/2013,342695,-221.29,Kent County Council (Kcs),KCC003,Director of Operational Services,Revenue,Premises Related Expenditure
http://www.ons.gov.uk/ons/guide-method/geography/products/names--codes-and-look-ups/names-and-codes-listings/names-and-codes-for-administrative-geography/index.html,Thanet District Council,20/08/2013,342729,-565.93,Kent County Council (Kcs),KCC003,Director of Operational Services,Revenue,Premises Related Expenditure
http://www.ons.gov.uk/ons/guide-method/geography/products/names--codes-and-look-ups/names-and-codes-listings/names-and-codes-for-administrative-geography/index.html,Thanet District Council,20/08/2013,343604,5744.77,Kent County Council (Kcs),KCC003,Director of Corporate Services and Transformation,Revenue,Supplies And Services
http://www.ons.gov.uk/ons/guide-method/geography/products/names--codes-and-look-ups/names-and-codes-listings/names-and-codes-for-administrative-geography/index.html,Thanet District Council,20/08/2013,343864,312.14,Kent County Council (Kcs),KCC003,Director of Operational Services,Revenue,Premises Related Expenditure
http://www.ons.gov.uk/ons/guide-method/geography/products/names--codes-and-look-ups/names-and-codes-listings/names-and-codes-for-administrative-geography/index.html,Thanet District Council,20/08/2013,343865,334.47,Kent County Council (Kcs),KCC003,Director of Operational Services,Revenue,Premises Related Expenditure
http://www.ons.gov.uk/ons/guide-method/geography/products/names--codes-and-look-ups/names-and-codes-listings/names-and-codes-for-administrative-geography/index.html,Thanet District Council,20/08/2013,343867,653.08,Kent County Council (Kcs),KCC003,Director of Community Services,Revenue,Premises Related Expenditure
http://www.ons.gov.uk/ons/guide-method/geography/products/names--codes-and-look-ups/names-and-codes-listings/names-and-codes-for-administrative-geography/index.html,Thanet District Council,20/08/2013,343879,282.61,Kent County Council (Kcs),KCC003,Director of Operational Services,Revenue,Premises Related Expenditure
http://www.ons.gov.uk/ons/guide-method/geography/products/names--codes-and-look-ups/names-and-codes-listings/names-and-codes-for-administrative-geography/index.html,Thanet District Council,20/08/2013,344096,447878.00,Kent Police Authority,KPA003,Director of Corporate Services and Transformation,Balance Sheet,Reserves
http://www.ons.gov.uk/ons/guide-method/geography/products/names--codes-and-look-ups/names-and-codes-listings/names-and-codes-for-administrative-geography/index.html,Thanet District Council,20/08/2013,343517,429.00,Knaves Ash Plants,KNA001,Director of Operational Services,Revenue,Premises Related Expenditure
http://www.ons.gov.uk/ons/guide-method/geography/products/names--codes-and-look-ups/names-and-codes-listings/names-and-codes-for-administrative-geography/index.html,Thanet District Council,20/08/2013,343856,5600.00,Leafleteers Ltd,LEA023,Director of Operational Services,Revenue,Supplies And Services
http://www.ons.gov.uk/ons/guide-method/geography/products/names--codes-and-look-ups/names-and-codes-listings/names-and-codes-for-administrative-geography/index.html,Thanet District Council,20/08/2013,343582,1518.15,Macfarlane Telesystems Limited,MAC005,East Kent Shared Services,Revenue,Supplies And Services
http://www.ons.gov.uk/ons/guide-method/geography/products/names--codes-and-look-ups/names-and-codes-listings/names-and-codes-for-administrative-geography/index.html,Thanet District Council,20/08/2013,343548,2297.48,Mears Ltd,MEA003,Director of Corporate Services and Transformation,Balance Sheet,Current Assets
http://www.ons.gov.uk/ons/guide-method/geography/products/names--codes-and-look-ups/names-and-codes-listings/names-and-codes-for-administrative-geography/index.html,Thanet District Council,20/08/2013,343549,298.80,Mears Ltd,MEA003,Director of Corporate Services and Transformation,Balance Sheet,Current Assets
http://www.ons.gov.uk/ons/guide-method/geography/products/names--codes-and-look-ups/names-and-codes-listings/names-and-codes-for-administrative-geography/index.html,Thanet District Council,20/08/2013,343550,3599.40,Mears Ltd,MEA003,Director of Corporate Services and Transformation,Balance Sheet,Current Assets
http://www.ons.gov.uk/ons/guide-method/geography/products/names--codes-and-look-ups/names-and-codes-listings/names-and-codes-for-administrative-geography/index.html,Thanet District Council,20/08/2013,343551,9449.48,Mears Ltd,MEA003,Director of Corporate Services and Transformation,Balance Sheet,Current Assets
http://www.ons.gov.uk/ons/guide-method/geography/products/names--codes-and-look-ups/names-and-codes-listings/names-and-codes-for-administrative-geography/index.html,Thanet District Council,20/08/2013,343552,51652.49,Mears Ltd,MEA003,Director of Corporate Services and Transformation,Balance Sheet,Current Assets
http://www.ons.gov.uk/ons/guide-method/geography/products/names--codes-and-look-ups/names-and-codes-listings/names-and-codes-for-administrative-geography/index.html,Thanet District Council,20/08/2013,343567,491.37,Mears Ltd,MEA003,Director of Operational Services,Revenue,Premises Related Expenditure
http://www.ons.gov.uk/ons/guide-method/geography/products/names--codes-and-look-ups/names-and-codes-listings/names-and-codes-for-administrative-geography/index.html,Thanet District Council,20/08/2013,343569,18110.16,Mears Ltd,MEA003,Director of Corporate Services and Transformation,Balance Sheet,Current Assets
http://www.ons.gov.uk/ons/guide-method/geography/products/names--codes-and-look-ups/names-and-codes-listings/names-and-codes-for-administrative-geography/index.html,Thanet District Council,20/08/2013,343573,1322.05,Mears Ltd,MEA003,Director of Operational Services,Revenue,Premises Related Expenditure
http://www.ons.gov.uk/ons/guide-method/geography/products/names--codes-and-look-ups/names-and-codes-listings/names-and-codes-for-administrative-geography/index.html,Thanet District Council,20/08/2013,343806,7199.89,Mears Ltd,MEA003,Director of Corporate Services and Transformation,Balance Sheet,Current Assets
http://www.ons.gov.uk/ons/guide-method/geography/products/names--codes-and-look-ups/names-and-codes-listings/names-and-codes-for-administrative-geography/index.html,Thanet District Council,20/08/2013,343807,9335.28,Mears Ltd,MEA003,Director of Corporate Services and Transformation,Balance Sheet,Current Assets
http://www.ons.gov.uk/ons/guide-method/geography/products/names--codes-and-look-ups/names-and-codes-listings/names-and-codes-for-administrative-geography/index.html,Thanet District Council,20/08/2013,343822,1254.00,Michael Page Finance,PAG008,Director of Corporate Services and Transformation,Revenue,Employees
http://www.ons.gov.uk/ons/guide-method/geography/products/names--codes-and-look-ups/names-and-codes-listings/names-and-codes-for-administrative-geography/index.html,Thanet District Council,20/08/2013,344033,765.00,Mitchell Powersystems,MIT006,Director of Operational Services,Revenue,Transport Related Expenditure
http://www.ons.gov.uk/ons/guide-method/geography/products/names--codes-and-look-ups/names-and-codes-listings/names-and-codes-for-administrative-geography/index.html,Thanet District Council,20/08/2013,343494,552.65,Morgan Jones Ltd,MOR001,East Kent Shared Services,Revenue,Employees
http://www.ons.gov.uk/ons/guide-method/geography/products/names--codes-and-look-ups/names-and-codes-listings/names-and-codes-for-administrative-geography/index.html,Thanet District Council,20/08/2013,343933,544.76,Morgan Jones Ltd,MOR001,East Kent Shared Services,Revenue,Employees
http://www.ons.gov.uk/ons/guide-method/geography/products/names--codes-and-look-ups/names-and-codes-listings/names-and-codes-for-administrative-geography/index.html,Thanet District Council,20/08/2013,343835,600.00,Ncc Services Ltd,NCC003,Director of Corporate Services and Transformation,Revenue,Supplies And Services
http://www.ons.gov.uk/ons/guide-method/geography/products/names--codes-and-look-ups/names-and-codes-listings/names-and-codes-for-administrative-geography/index.html,Thanet District Council,20/08/2013,343156,285.82,Orange Personal Communications Ltd,ORA002,Director of Corporate Services and Transformation,Revenue,Supplies And Services
http://www.ons.gov.uk/ons/guide-method/geography/products/names--codes-and-look-ups/names-and-codes-listings/names-and-codes-for-administrative-geography/index.html,Thanet District Council,20/08/2013,343344,787.00,Pillory Barn Design Ltd,PIL004,Director of Operational Services,Revenue,Supplies And Services
http://www.ons.gov.uk/ons/guide-method/geography/products/names--codes-and-look-ups/names-and-codes-listings/names-and-codes-for-administrative-geography/index.html,Thanet District Council,20/08/2013,343911,967.75,Pillory Barn Design Ltd,PIL004,Director of Operational Services,Revenue,Supplies And Services
http://www.ons.gov.uk/ons/guide-method/geography/products/names--codes-and-look-ups/names-and-codes-listings/names-and-codes-for-administrative-geography/index.html,Thanet District Council,20/08/2013,343443,1200.00,Proact Uk Ltd,PRO028,East Kent Shared Services,Revenue,Supplies And Services
http://www.ons.gov.uk/ons/guide-method/geography/products/names--codes-and-look-ups/names-and-codes-listings/names-and-codes-for-administrative-geography/index.html,Thanet District Council,20/08/2013,343506,477.08,Probrand Ltd,PRO012,Director of Corporate Services and Transformation,Revenue,Supplies And Services
http://www.ons.gov.uk/ons/guide-method/geography/products/names--codes-and-look-ups/names-and-codes-listings/names-and-codes-for-administrative-geography/index.html,Thanet District Council,20/08/2013,343571,795.00,Probrand Ltd,PRO012,Director of Corporate Services and Transformation,Revenue,Supplies And Services
http://www.ons.gov.uk/ons/guide-method/geography/products/names--codes-and-look-ups/names-and-codes-listings/names-and-codes-for-administrative-geography/index.html,Thanet District Council,20/08/2013,343572,1139.83,Probrand Ltd,PRO012,East Kent Shared Services,Revenue,Supplies And Services
http://www.ons.gov.uk/ons/guide-method/geography/products/names--codes-and-look-ups/names-and-codes-listings/names-and-codes-for-administrative-geography/index.html,Thanet District Council,20/08/2013,343446,1310.00,Rackspace Limited,RAC006,East Kent Shared Services,Revenue,Supplies And Services
http://www.ons.gov.uk/ons/guide-method/geography/products/names--codes-and-look-ups/names-and-codes-listings/names-and-codes-for-administrative-geography/index.html,Thanet District Council,20/08/2013,343516,498.50,Rigby Taylor Ltd,RIG002,Director of Operational Services,Revenue,Supplies And Services
http://www.ons.gov.uk/ons/guide-method/geography/products/names--codes-and-look-ups/names-and-codes-listings/names-and-codes-for-administrative-geography/index.html,Thanet District Council,20/08/2013,343823,2418.52,Royal Mail,ROY004,Director of Corporate Services and Transformation,Revenue,Supplies And Services
http://www.ons.gov.uk/ons/guide-method/geography/products/names--codes-and-look-ups/names-and-codes-listings/names-and-codes-for-administrative-geography/index.html,Thanet District Council,20/08/2013,343559,58242.00,Royal National Lifeboat Institution,RNL002,Director of Operational Services,Revenue,Supplies And Services
http://www.ons.gov.uk/ons/guide-method/geography/products/names--codes-and-look-ups/names-and-codes-listings/names-and-codes-for-administrative-geography/index.html,Thanet District Council,20/08/2013,343161,230.37,Santander Uk Plc,SAN019,East Kent Shared Services,Revenue,Supplies And Services
http://www.ons.gov.uk/ons/guide-method/geography/products/names--codes-and-look-ups/names-and-codes-listings/names-and-codes-for-administrative-geography/index.html,Thanet District Council,20/08/2013,343465,240.00,Shepway District Council,SHE001,Director of Community Services,Revenue,Supplies And Services
http://www.ons.gov.uk/ons/guide-method/geography/products/names--codes-and-look-ups/names-and-codes-listings/names-and-codes-for-administrative-geography/index.html,Thanet District Council,20/08/2013,343907,949.15,Silgo Lubricants Ltd,SIL007,Director of Operational Services,Revenue,Transport Related Expenditure
http://www.ons.gov.uk/ons/guide-method/geography/products/names--codes-and-look-ups/names-and-codes-listings/names-and-codes-for-administrative-geography/index.html,Thanet District Council,20/08/2013,343908,2408.00,Silgo Lubricants Ltd,SIL007,Director of Operational Services,Revenue,Transport Related Expenditure
http://www.ons.gov.uk/ons/guide-method/geography/products/names--codes-and-look-ups/names-and-codes-listings/names-and-codes-for-administrative-geography/index.html,Thanet District Council,20/08/2013,343418,288.40,Sitexorbis Ltd,SIT007,Director of Community Services,Revenue,Supplies And Services
http://www.ons.gov.uk/ons/guide-method/geography/products/names--codes-and-look-ups/names-and-codes-listings/names-and-codes-for-administrative-geography/index.html,Thanet District Council,20/08/2013,343621,1728.27,Southern Electric,SEL007,Director of Operational Services,Revenue,Premises Related Expenditure
http://www.ons.gov.uk/ons/guide-method/geography/products/names--codes-and-look-ups/names-and-codes-listings/names-and-codes-for-administrative-geography/index.html,Thanet District Council,20/08/2013,343623,403.22,Southern Electric,SEL007,Director of Operational Services,Revenue,Premises Related Expenditure
http://www.ons.gov.uk/ons/guide-method/geography/products/names--codes-and-look-ups/names-and-codes-listings/names-and-codes-for-administrative-geography/index.html,Thanet District Council,20/08/2013,343484,419.31,Southern Water,SWA001,Director of Operational Services,Revenue,Premises Related Expenditure
http://www.ons.gov.uk/ons/guide-method/geography/products/names--codes-and-look-ups/names-and-codes-listings/names-and-codes-for-administrative-geography/index.html,Thanet District Council,20/08/2013,343632,772.49,Southern Water,SWA001,Director of Operational Services,Revenue,Premises Related Expenditure
http://www.ons.gov.uk/ons/guide-method/geography/products/names--codes-and-look-ups/names-and-codes-listings/names-and-codes-for-administrative-geography/index.html,Thanet District Council,20/08/2013,343633,291.98,Southern Water,SWA001,Director of Operational Services,Revenue,Premises Related Expenditure
http://www.ons.gov.uk/ons/guide-method/geography/products/names--codes-and-look-ups/names-and-codes-listings/names-and-codes-for-administrative-geography/index.html,Thanet District Council,20/08/2013,343636,1756.39,Southern Water,SWA001,Director of Operational Services,Revenue,Premises Related Expenditure
http://www.ons.gov.uk/ons/guide-method/geography/products/names--codes-and-look-ups/names-and-codes-listings/names-and-codes-for-administrative-geography/index.html,Thanet District Council,20/08/2013,344008,216.54,Sparshatts Of Kent Ltd,SPA008,Director of Operational Services,Revenue,Transport Related Expenditure
http://www.ons.gov.uk/ons/guide-method/geography/products/names--codes-and-look-ups/names-and-codes-listings/names-and-codes-for-administrative-geography/index.html,Thanet District Council,20/08/2013,343453,2386.00,Stonaco Fabrications Ltd,STO002,Director of Operational Services,Revenue,Premises Related Expenditure
http://www.ons.gov.uk/ons/guide-method/geography/products/names--codes-and-look-ups/names-and-codes-listings/names-and-codes-for-administrative-geography/index.html,Thanet District Council,20/08/2013,343641,527.40,The Bell Brush Company,BEL018,Director of Operational Services,Revenue,Supplies And Services
http://www.ons.gov.uk/ons/guide-method/geography/products/names--codes-and-look-ups/names-and-codes-listings/names-and-codes-for-administrative-geography/index.html,Thanet District Council,20/08/2013,344086,3375.00,The Gpm Partnership,GPM001,Director of Corporate Services and Transformation,Balance Sheet,Long Term Assets
http://www.ons.gov.uk/ons/guide-method/geography/products/names--codes-and-look-ups/names-and-codes-listings/names-and-codes-for-administrative-geography/index.html,Thanet District Council,20/08/2013,343420,517.50,Total Merchandise Ltd,TOT012,Director of Community Services,Revenue,Supplies And Services
http://www.ons.gov.uk/ons/guide-method/geography/products/names--codes-and-look-ups/names-and-codes-listings/names-and-codes-for-administrative-geography/index.html,Thanet District Council,20/08/2013,343935,5315.00,Trowers & Hamlins,TRO001,Director of Corporate Services and Transformation,Balance Sheet,Long Term Assets
http://www.ons.gov.uk/ons/guide-method/geography/products/names--codes-and-look-ups/names-and-codes-listings/names-and-codes-for-administrative-geography/index.html,Thanet District Council,20/08/2013,342775,320.00,Ultra Electronics Aep Payments Ltd,ULT005,Director of Community Services,Revenue,Supplies And Services
http://www.ons.gov.uk/ons/guide-method/geography/products/names--codes-and-look-ups/names-and-codes-listings/names-and-codes-for-administrative-geography/index.html,Thanet District Council,20/08/2013,343474,5400.00,Vector Resourcing Ltd,VEC001,East Kent Shared Services,Revenue,Employees
http://www.ons.gov.uk/ons/guide-method/geography/products/names--codes-and-look-ups/names-and-codes-listings/names-and-codes-for-administrative-geography/index.html,Thanet District Council,20/08/2013,343931,266.22,Viridor Waste Management Ltd,VIR003,Director of Operational Services,Revenue,Premises Related Expenditure
http://www.ons.gov.uk/ons/guide-method/geography/products/names--codes-and-look-ups/names-and-codes-listings/names-and-codes-for-administrative-geography/index.html,Thanet District Council,20/08/2013,343591,420.00,W Brazil & Bros,BRA001,Director of Operational Services,Revenue,Premises Related Expenditure
http://www.ons.gov.uk/ons/guide-method/geography/products/names--codes-and-look-ups/names-and-codes-listings/names-and-codes-for-administrative-geography/index.html,Thanet District Council,20/08/2013,343592,780.00,W Brazil & Bros,BRA001,Director of Operational Services,Revenue,Premises Related Expenditure
http://www.ons.gov.uk/ons/guide-method/geography/products/names--codes-and-look-ups/names-and-codes-listings/names-and-codes-for-administrative-geography/index.html,Thanet District Council,20/08/2013,343593,510.00,W Brazil & Bros,BRA001,Director of Operational Services,Revenue,Premises Related Expenditure
http://www.ons.gov.uk/ons/guide-method/geography/products/names--codes-and-look-ups/names-and-codes-listings/names-and-codes-for-administrative-geography/index.html,Thanet District Council,20/08/2013,343596,290.00,W Brazil & Bros,BRA001,Director of Operational Services,Revenue,Premises Related Expenditure
http://www.ons.gov.uk/ons/guide-method/geography/products/names--codes-and-look-ups/names-and-codes-listings/names-and-codes-for-administrative-geography/index.html,Thanet District Council,20/08/2013,343597,920.00,W Brazil & Bros,BRA001,Director of Operational Services,Revenue,Premises Related Expenditure
http://www.ons.gov.uk/ons/guide-method/geography/products/names--codes-and-look-ups/names-and-codes-listings/names-and-codes-for-administrative-geography/index.html,Thanet District Council,20/08/2013,343598,450.00,W Brazil & Bros,BRA001,Director of Operational Services,Revenue,Premises Related Expenditure
http://www.ons.gov.uk/ons/guide-method/geography/products/names--codes-and-look-ups/names-and-codes-listings/names-and-codes-for-administrative-geography/index.html,Thanet District Council,20/08/2013,343599,325.00,W Brazil & Bros,BRA001,Director of Operational Services,Revenue,Premises Related Expenditure
http://www.ons.gov.uk/ons/guide-method/geography/products/names--codes-and-look-ups/names-and-codes-listings/names-and-codes-for-administrative-geography/index.html,Thanet District Council,20/08/2013,343642,976.20,Westbury Industrial Supplies Ltd,WES042,Director of Operational Services,Revenue,Supplies And Services
http://www.ons.gov.uk/ons/guide-method/geography/products/names--codes-and-look-ups/names-and-codes-listings/names-and-codes-for-administrative-geography/index.html,Thanet District Council,20/08/2013,343574,376.73,Xma Ltd,XMA001,East Kent Shared Services,Revenue,Supplies And Services
http://www.ons.gov.uk/ons/guide-method/geography/products/names--codes-and-look-ups/names-and-codes-listings/names-and-codes-for-administrative-geography/index.html,Thanet District Council,27/08/2013,PC4364,1995.00,Aquatech Pressman Ltd,N/A,Director of Operational Services,Revenue,Supplies And Services
http://www.ons.gov.uk/ons/guide-method/geography/products/names--codes-and-look-ups/names-and-codes-listings/names-and-codes-for-administrative-geography/index.html,Thanet District Council,27/08/2013,PC4317,468.45,Cartridgesave,N/A,Director of Operational Services,Revenue,Supplies And Services
http://www.ons.gov.uk/ons/guide-method/geography/products/names--codes-and-look-ups/names-and-codes-listings/names-and-codes-for-administrative-geography/index.html,Thanet District Council,27/08/2013,PC4299,320.00,County Court Canterbury,N/A,East Kent Shared Services,Revenue,Supplies And Services
http://www.ons.gov.uk/ons/guide-method/geography/products/names--codes-and-look-ups/names-and-codes-listings/names-and-codes-for-administrative-geography/index.html,Thanet District Council,27/08/2013,PC4342,490.00,CPL Media Ltd,N/A,Director of Community Services,Revenue,Supplies And Services
http://www.ons.gov.uk/ons/guide-method/geography/products/names--codes-and-look-ups/names-and-codes-listings/names-and-codes-for-administrative-geography/index.html,Thanet District Council,27/08/2013,PC4323,750.00,Euro Municipal Ltd,N/A,Director of Operational Services,Revenue,Transport Related Expenditure
http://www.ons.gov.uk/ons/guide-method/geography/products/names--codes-and-look-ups/names-and-codes-listings/names-and-codes-for-administrative-geography/index.html,Thanet District Council,27/08/2013,PC4363,450.00,FGS Agri Ltd,N/A,Director of Operational Services,Revenue,Premises Related Expenditure
http://www.ons.gov.uk/ons/guide-method/geography/products/names--codes-and-look-ups/names-and-codes-listings/names-and-codes-for-administrative-geography/index.html,Thanet District Council,27/08/2013,PC4272,1431.00,H M Courts Service,N/A,East Kent Shared Services,Revenue,Supplies And Services
http://www.ons.gov.uk/ons/guide-method/geography/products/names--codes-and-look-ups/names-and-codes-listings/names-and-codes-for-administrative-geography/index.html,Thanet District Council,27/08/2013,PC4281,2445.00,H M Courts Service,N/A,East Kent Shared Services,Revenue,Supplies And Services
http://www.ons.gov.uk/ons/guide-method/geography/products/names--codes-and-look-ups/names-and-codes-listings/names-and-codes-for-administrative-geography/index.html,Thanet District Council,27/08/2013,PC4282,1044.00,H M Courts Service,N/A,East Kent Shared Services,Revenue,Supplies And Services
http://www.ons.gov.uk/ons/guide-method/geography/products/names--codes-and-look-ups/names-and-codes-listings/names-and-codes-for-administrative-geography/index.html,Thanet District Council,27/08/2013,PC4327,324.20,htm2pdf.co.uk,N/A,East Kent Shared Services,Revenue,Supplies And Services
http://www.ons.gov.uk/ons/guide-method/geography/products/names--codes-and-look-ups/names-and-codes-listings/names-and-codes-for-administrative-geography/index.html,Thanet District Council,27/08/2013,PC4307,387.00,P & P Windows,N/A,Director of Operational Services,Revenue,Premises Related Expenditure
http://www.ons.gov.uk/ons/guide-method/geography/products/names--codes-and-look-ups/names-and-codes-listings/names-and-codes-for-administrative-geography/index.html,Thanet District Council,29/08/2013,343930,227.45,A J Security,AJS002,Director of Operational Services,Revenue,Supplies And Services
http://www.ons.gov.uk/ons/guide-method/geography/products/names--codes-and-look-ups/names-and-codes-listings/names-and-codes-for-administrative-geography/index.html,Thanet District Council,29/08/2013,343469,4384.49,Agwood Ltd,AGW001,Director of Operational Services,Revenue,Transport Related Expenditure
http://www.ons.gov.uk/ons/guide-method/geography/products/names--codes-and-look-ups/names-and-codes-listings/names-and-codes-for-administrative-geography/index.html,Thanet District Council,29/08/2013,343470,3894.80,Agwood Ltd,AGW001,Director of Operational Services,Revenue,Transport Related Expenditure
http://www.ons.gov.uk/ons/guide-method/geography/products/names--codes-and-look-ups/names-and-codes-listings/names-and-codes-for-administrative-geography/index.html,Thanet District Council,29/08/2013,343824,3315.00,Albion Fencing Kent Ltd,ALB005,Director of Operational Services,Revenue,Premises Related Expenditure
http://www.ons.gov.uk/ons/guide-method/geography/products/names--codes-and-look-ups/names-and-codes-listings/names-and-codes-for-administrative-geography/index.html,Thanet District Council,29/08/2013,344507,317.24,Allstar Business Solutions Ltd,ALL038,Director of Operational Services,Revenue,Transport Related Expenditure
http://www.ons.gov.uk/ons/guide-method/geography/products/names--codes-and-look-ups/names-and-codes-listings/names-and-codes-for-administrative-geography/index.html,Thanet District Council,29/08/2013,344323,895.00,Atlas (Uk) Ltd,ATL002,Director of Corporate Services and Transformation,Revenue,Supplies And Services
http://www.ons.gov.uk/ons/guide-method/geography/products/names--codes-and-look-ups/names-and-codes-listings/names-and-codes-for-administrative-geography/index.html,Thanet District Council,29/08/2013,344381,5893.08,Bramling Construction Ltd,BRA020,Director of Corporate Services and Transformation,Balance Sheet,Long Term Assets
http://www.ons.gov.uk/ons/guide-method/geography/products/names--codes-and-look-ups/names-and-codes-listings/names-and-codes-for-administrative-geography/index.html,Thanet District Council,29/08/2013,344382,5910.00,Bramling Construction Ltd,BRA020,Director of Corporate Services and Transformation,Balance Sheet,Long Term Assets
http://www.ons.gov.uk/ons/guide-method/geography/products/names--codes-and-look-ups/names-and-codes-listings/names-and-codes-for-administrative-geography/index.html,Thanet District Council,29/08/2013,343035,22821.10,Canterbury City Council,CAN004,Director of Corporate Services and Transformation,Balance Sheet,Long Term Assets
http://www.ons.gov.uk/ons/guide-method/geography/products/names--codes-and-look-ups/names-and-codes-listings/names-and-codes-for-administrative-geography/index.html,Thanet District Council,29/08/2013,344059,815.57,Channel Commercials Plc,CCO001,Director of Operational Services,Revenue,Transport Related Expenditure
http://www.ons.gov.uk/ons/guide-method/geography/products/names--codes-and-look-ups/names-and-codes-listings/names-and-codes-for-administrative-geography/index.html,Thanet District Council,29/08/2013,343836,2840.04,Civica Uk Ltd,CIV003,East Kent Shared Services,Revenue,Supplies And Services
http://www.ons.gov.uk/ons/guide-method/geography/products/names--codes-and-look-ups/names-and-codes-listings/names-and-codes-for-administrative-geography/index.html,Thanet District Council,29/08/2013,343837,1750.00,Civica Uk Ltd,CIV003,East Kent Shared Services,Revenue,Supplies And Services
http://www.ons.gov.uk/ons/guide-method/geography/products/names--codes-and-look-ups/names-and-codes-listings/names-and-codes-for-administrative-geography/index.html,Thanet District Council,29/08/2013,344385,642.60,Clague Llp,CLA038,Director of Community Services,Revenue,Supplies And Services
http://www.ons.gov.uk/ons/guide-method/geography/products/names--codes-and-look-ups/names-and-codes-listings/names-and-codes-for-administrative-geography/index.html,Thanet District Council,29/08/2013,344466,700.00,Cliffsend Parish Council,CLI015,Director of Community Services,Revenue,Supplies And Services
http://www.ons.gov.uk/ons/guide-method/geography/products/names--codes-and-look-ups/names-and-codes-listings/names-and-codes-for-administrative-geography/index.html,Thanet District Council,29/08/2013,343887,16919.80,Commercial Services Kent Ltd,COM049,Director of Operational Services,Revenue,Supplies And Services
http://www.ons.gov.uk/ons/guide-method/geography/products/names--codes-and-look-ups/names-and-codes-listings/names-and-codes-for-administrative-geography/index.html,Thanet District Council,29/08/2013,343927,18264.25,Crown Estate Re Chesterton Humberts,CRO022,Director of Operational Services,Revenue,Premises Related Expenditure
http://www.ons.gov.uk/ons/guide-method/geography/products/names--codes-and-look-ups/names-and-codes-listings/names-and-codes-for-administrative-geography/index.html,Thanet District Council,29/08/2013,343928,4435.75,Crown Estate Re Chesterton Humberts,CRO022,Director of Operational Services,Revenue,Premises Related Expenditure
http://www.ons.gov.uk/ons/guide-method/geography/products/names--codes-and-look-ups/names-and-codes-listings/names-and-codes-for-administrative-geography/index.html,Thanet District Council,29/08/2013,343997,23733.50,Crown Estate Re Chesterton Humberts,CRO022,Director of Operational Services,Revenue,Premises Related Expenditure
http://www.ons.gov.uk/ons/guide-method/geography/products/names--codes-and-look-ups/names-and-codes-listings/names-and-codes-for-administrative-geography/index.html,Thanet District Council,29/08/2013,344335,325.31,Dennis Eagle Ltd,DEN005,Director of Operational Services,Revenue,Transport Related Expenditure
http://www.ons.gov.uk/ons/guide-method/geography/products/names--codes-and-look-ups/names-and-codes-listings/names-and-codes-for-administrative-geography/index.html,Thanet District Council,29/08/2013,344306,250000.00,Dover District Council,DOV001,East Kent Shared Services,Revenue,Supplies And Services
http://www.ons.gov.uk/ons/guide-method/geography/products/names--codes-and-look-ups/names-and-codes-listings/names-and-codes-for-administrative-geography/index.html,Thanet District Council,29/08/2013,344307,7927.15,Dover District Council,DOV001,East Kent Shared Services,Revenue,Supplies And Services
http://www.ons.gov.uk/ons/guide-method/geography/products/names--codes-and-look-ups/names-and-codes-listings/names-and-codes-for-administrative-geography/index.html,Thanet District Council,29/08/2013,344000,225.60,Dunoon Ceramics Ltd,DUN014,Director of Community Services,Revenue,Supplies And Services
http://www.ons.gov.uk/ons/guide-method/geography/products/names--codes-and-look-ups/names-and-codes-listings/names-and-codes-for-administrative-geography/index.html,Thanet District Council,29/08/2013,344021,54.34,E Saunders Margate Ltd,SAU001,Director of Community Services,Revenue,Premises Related Expenditure
http://www.ons.gov.uk/ons/guide-method/geography/products/names--codes-and-look-ups/names-and-codes-listings/names-and-codes-for-administrative-geography/index.html,Thanet District Council,29/08/2013,344021,661.83,E Saunders Margate Ltd,SAU001,Director of Operational Services,Revenue,Premises Related Expenditure
http://www.ons.gov.uk/ons/guide-method/geography/products/names--codes-and-look-ups/names-and-codes-listings/names-and-codes-for-administrative-geography/index.html,Thanet District Council,29/08/2013,344176,222.30,Edge Enviro Services Ltd,EDG001,Director of Corporate Services and Transformation,Balance Sheet,Current Assets
http://www.ons.gov.uk/ons/guide-method/geography/products/names--codes-and-look-ups/names-and-codes-listings/names-and-codes-for-administrative-geography/index.html,Thanet District Council,29/08/2013,344109,7348.50,Egbert H Taylor & Company Ltd,TAY005,Director of Corporate Services and Transformation,Balance Sheet,Long Term Assets
http://www.ons.gov.uk/ons/guide-method/geography/products/names--codes-and-look-ups/names-and-codes-listings/names-and-codes-for-administrative-geography/index.html,Thanet District Council,29/08/2013,343904,257.31,Electrical Lighting Solutions Ltd,ELE013,Director of Corporate Services and Transformation,Balance Sheet,Long Term Assets
http://www.ons.gov.uk/ons/guide-method/geography/products/names--codes-and-look-ups/names-and-codes-listings/names-and-codes-for-administrative-geography/index.html,Thanet District Council,29/08/2013,343905,965.10,Electrical Lighting Solutions Ltd,ELE013,Director of Operational Services,Revenue,Premises Related Expenditure
http://www.ons.gov.uk/ons/guide-method/geography/products/names--codes-and-look-ups/names-and-codes-listings/names-and-codes-for-administrative-geography/index.html,Thanet District Council,29/08/2013,343934,285.88,Electrical Lighting Solutions Ltd,ELE013,Director of Corporate Services and Transformation,Balance Sheet,Long Term Assets
http://www.ons.gov.uk/ons/guide-method/geography/products/names--codes-and-look-ups/names-and-codes-listings/names-and-codes-for-administrative-geography/index.html,Thanet District Council,29/08/2013,344173,469.90,Evergreen Landscaping Gardening Ltd,EVE004,Director of Operational Services,Revenue,Premises Related Expenditure
http://www.ons.gov.uk/ons/guide-method/geography/products/names--codes-and-look-ups/names-and-codes-listings/names-and-codes-for-administrative-geography/index.html,Thanet District Council,29/08/2013,343448,1337.00,Fairhaven & Woods Limited,FAI002,Director of Community Services,Revenue,Premises Related Expenditure
http://www.ons.gov.uk/ons/guide-method/geography/products/names--codes-and-look-ups/names-and-codes-listings/names-and-codes-for-administrative-geography/index.html,Thanet District Council,29/08/2013,344383,709.20,Family Mosaic Housing,FAM001,Director of Corporate Services and Transformation,Balance Sheet,Long Term Assets
http://www.ons.gov.uk/ons/guide-method/geography/products/names--codes-and-look-ups/names-and-codes-listings/names-and-codes-for-administrative-geography/index.html,Thanet District Council,29/08/2013,344384,730.60,Family Mosaic Housing,FAM001,Director of Corporate Services and Transformation,Balance Sheet,Long Term Assets
http://www.ons.gov.uk/ons/guide-method/geography/products/names--codes-and-look-ups/names-and-codes-listings/names-and-codes-for-administrative-geography/index.html,Thanet District Council,29/08/2013,343601,3368.00,Filcris Ltd,FIL002,Director of Operational Services,Revenue,Supplies And Services
http://www.ons.gov.uk/ons/guide-method/geography/products/names--codes-and-look-ups/names-and-codes-listings/names-and-codes-for-administrative-geography/index.html,Thanet District Council,29/08/2013,344005,1165.00,Four Jays Ltd,FOU007,Director of Community Services,Revenue,Supplies And Services
http://www.ons.gov.uk/ons/guide-method/geography/products/names--codes-and-look-ups/names-and-codes-listings/names-and-codes-for-administrative-geography/index.html,Thanet District Council,29/08/2013,343912,500.00,Freeflow Limited,FRE010,Director of Operational Services,Revenue,Premises Related Expenditure
http://www.ons.gov.uk/ons/guide-method/geography/products/names--codes-and-look-ups/names-and-codes-listings/names-and-codes-for-administrative-geography/index.html,Thanet District Council,29/08/2013,344006,2359.00,Fuel Oils Kent,FUE001,Director of Operational Services,Revenue,Supplies And Services
http://www.ons.gov.uk/ons/guide-method/geography/products/names--codes-and-look-ups/names-and-codes-listings/names-and-codes-for-administrative-geography/index.html,Thanet District Council,29/08/2013,344007,3502.67,Fuel Oils Kent,FUE001,Director of Operational Services,Revenue,Supplies And Services
http://www.ons.gov.uk/ons/guide-method/geography/products/names--codes-and-look-ups/names-and-codes-listings/names-and-codes-for-administrative-geography/index.html,Thanet District Council,29/08/2013,343859,600.00,G Chittenden,CHI001,Director of Corporate Services and Transformation,Balance Sheet,Current Assets
http://www.ons.gov.uk/ons/guide-method/geography/products/names--codes-and-look-ups/names-and-codes-listings/names-and-codes-for-administrative-geography/index.html,Thanet District Council,29/08/2013,344426,2800.00,H M Revenue & Customs,HMR004,Director of Corporate Services and Transformation,Balance Sheet,Long Term Assets
http://www.ons.gov.uk/ons/guide-method/geography/products/names--codes-and-look-ups/names-and-codes-listings/names-and-codes-for-administrative-geography/index.html,Thanet District Council,29/08/2013,343819,650.00,Hi Way Services Ltd,HIW002,Director of Operational Services,Revenue,Premises Related Expenditure
http://www.ons.gov.uk/ons/guide-method/geography/products/names--codes-and-look-ups/names-and-codes-listings/names-and-codes-for-administrative-geography/index.html,Thanet District Council,29/08/2013,344101,499.50,Hr Go Recruitment Ltd,HRG002,Director of Operational Services,Revenue,Employees
http://www.ons.gov.uk/ons/guide-method/geography/products/names--codes-and-look-ups/names-and-codes-listings/names-and-codes-for-administrative-geography/index.html,Thanet District Council,29/08/2013,344102,543.00,Hr Go Recruitment Ltd,HRG002,Director of Operational Services,Revenue,Employees
http://www.ons.gov.uk/ons/guide-method/geography/products/names--codes-and-look-ups/names-and-codes-listings/names-and-codes-for-administrative-geography/index.html,Thanet District Council,29/08/2013,344103,5357.02,Hr Go Recruitment Ltd,HRG002,Director of Operational Services,Revenue,Employees
http://www.ons.gov.uk/ons/guide-method/geography/products/names--codes-and-look-ups/names-and-codes-listings/names-and-codes-for-administrative-geography/index.html,Thanet District Council,29/08/2013,344014,2475.00,Inovem Limited,INO001,Director of Community Services,Revenue,Supplies And Services
http://www.ons.gov.uk/ons/guide-method/geography/products/names--codes-and-look-ups/names-and-codes-listings/names-and-codes-for-administrative-geography/index.html,Thanet District Council,29/08/2013,344378,682.08,John Gale,GAL001,Director of Corporate Services and Transformation,Balance Sheet,Long Term Assets
http://www.ons.gov.uk/ons/guide-method/geography/products/names--codes-and-look-ups/names-and-codes-listings/names-and-codes-for-administrative-geography/index.html,Thanet District Council,29/08/2013,344379,1117.80,John Gale,GAL001,Director of Corporate Services and Transformation,Balance Sheet,Long Term Assets
http://www.ons.gov.uk/ons/guide-method/geography/products/names--codes-and-look-ups/names-and-codes-listings/names-and-codes-for-administrative-geography/index.html,Thanet District Council,29/08/2013,344331,5000.00,Kent County Council,KCC002,Director of Operational Services,Revenue,Supplies And Services
http://www.ons.gov.uk/ons/guide-method/geography/products/names--codes-and-look-ups/names-and-codes-listings/names-and-codes-for-administrative-geography/index.html,Thanet District Council,29/08/2013,344434,1299.12,Kent County Council,KCC002,Director of Operational Services,Revenue,Premises Related Expenditure
http://www.ons.gov.uk/ons/guide-method/geography/products/names--codes-and-look-ups/names-and-codes-listings/names-and-codes-for-administrative-geography/index.html,Thanet District Council,29/08/2013,343553,1560.81,Kent County Council (Kcs),KCC003,Director of Operational Services,Revenue,Premises Related Expenditure
http://www.ons.gov.uk/ons/guide-method/geography/products/names--codes-and-look-ups/names-and-codes-listings/names-and-codes-for-administrative-geography/index.html,Thanet District Council,29/08/2013,343554,5551.66,Kent County Council (Kcs),KCC003,Director of Operational Services,Revenue,Premises Related Expenditure
http://www.ons.gov.uk/ons/guide-method/geography/products/names--codes-and-look-ups/names-and-codes-listings/names-and-codes-for-administrative-geography/index.html,Thanet District Council,29/08/2013,343555,5683.56,Kent County Council (Kcs),KCC003,Director of Operational Services,Revenue,Premises Related Expenditure
http://www.ons.gov.uk/ons/guide-method/geography/products/names--codes-and-look-ups/names-and-codes-listings/names-and-codes-for-administrative-geography/index.html,Thanet District Council,29/08/2013,343972,-249.77,Kent County Council (Kcs),KCC003,Director of Operational Services,Revenue,Premises Related Expenditure
http://www.ons.gov.uk/ons/guide-method/geography/products/names--codes-and-look-ups/names-and-codes-listings/names-and-codes-for-administrative-geography/index.html,Thanet District Council,29/08/2013,343991,1556.73,Kent County Council (Kcs),KCC003,Director of Operational Services,Revenue,Premises Related Expenditure
http://www.ons.gov.uk/ons/guide-method/geography/products/names--codes-and-look-ups/names-and-codes-listings/names-and-codes-for-administrative-geography/index.html,Thanet District Council,29/08/2013,343992,951.08,Kent County Council (Kcs),KCC003,Director of Operational Services,Revenue,Premises Related Expenditure
http://www.ons.gov.uk/ons/guide-method/geography/products/names--codes-and-look-ups/names-and-codes-listings/names-and-codes-for-administrative-geography/index.html,Thanet District Council,29/08/2013,343993,1462.22,Kent County Council (Kcs),KCC003,Director of Operational Services,Revenue,Premises Related Expenditure
http://www.ons.gov.uk/ons/guide-method/geography/products/names--codes-and-look-ups/names-and-codes-listings/names-and-codes-for-administrative-geography/index.html,Thanet District Council,29/08/2013,343994,1189.75,Kent County Council (Kcs),KCC003,Director of Operational Services,Revenue,Premises Related Expenditure
http://www.ons.gov.uk/ons/guide-method/geography/products/names--codes-and-look-ups/names-and-codes-listings/names-and-codes-for-administrative-geography/index.html,Thanet District Council,29/08/2013,344110,3556.98,Kent County Council (Kcs),KCC003,Director of Corporate Services and Transformation,Revenue,Supplies And Services
http://www.ons.gov.uk/ons/guide-method/geography/products/names--codes-and-look-ups/names-and-codes-listings/names-and-codes-for-administrative-geography/index.html,Thanet District Council,29/08/2013,344110,197.61,Kent County Council (Kcs),KCC003,Director of Community Services,Revenue,Supplies And Services
http://www.ons.gov.uk/ons/guide-method/geography/products/names--codes-and-look-ups/names-and-codes-listings/names-and-codes-for-administrative-geography/index.html,Thanet District Council,29/08/2013,344110,988.05,Kent County Council (Kcs),KCC003,Director of Operational Services,Revenue,Supplies And Services
http://www.ons.gov.uk/ons/guide-method/geography/products/names--codes-and-look-ups/names-and-codes-listings/names-and-codes-for-administrative-geography/index.html,Thanet District Council,29/08/2013,344110,197.61,Kent County Council (Kcs),KCC003,East Kent Shared Services,Revenue,Supplies And Services
http://www.ons.gov.uk/ons/guide-method/geography/products/names--codes-and-look-ups/names-and-codes-listings/names-and-codes-for-administrative-geography/index.html,Thanet District Council,29/08/2013,344346,34100.59,Kent County Council (Kcs),KCC003,Director of Operational Services,Revenue,Transport Related Expenditure
http://www.ons.gov.uk/ons/guide-method/geography/products/names--codes-and-look-ups/names-and-codes-listings/names-and-codes-for-administrative-geography/index.html,Thanet District Council,29/08/2013,344003,246.56,Lister Wilder Limited,LIS002,Director of Operational Services,Revenue,Supplies And Services
http://www.ons.gov.uk/ons/guide-method/geography/products/names--codes-and-look-ups/names-and-codes-listings/names-and-codes-for-administrative-geography/index.html,Thanet District Council,29/08/2013,344058,271.99,Local World Limited,LOC018,Director of Community Services,Revenue,Supplies And Services
http://www.ons.gov.uk/ons/guide-method/geography/products/names--codes-and-look-ups/names-and-codes-listings/names-and-codes-for-administrative-geography/index.html,Thanet District Council,29/08/2013,344074,517.19,Loomis Uk Ltd,LOO002,Director of Operational Services,Revenue,Supplies And Services
http://www.ons.gov.uk/ons/guide-method/geography/products/names--codes-and-look-ups/names-and-codes-listings/names-and-codes-for-administrative-geography/index.html,Thanet District Council,29/08/2013,343834,176.00,Med Clean South Ltd,MED015,Director of Corporate Services and Transformation,Balance Sheet,Current Assets
http://www.ons.gov.uk/ons/guide-method/geography/products/names--codes-and-look-ups/names-and-codes-listings/names-and-codes-for-administrative-geography/index.html,Thanet District Council,29/08/2013,343834,35.20,Med Clean South Ltd,MED015,Director of Operational Services,Revenue,Premises Related Expenditure
http://www.ons.gov.uk/ons/guide-method/geography/products/names--codes-and-look-ups/names-and-codes-listings/names-and-codes-for-administrative-geography/index.html,Thanet District Council,29/08/2013,344329,912.00,Michael Page Finance,PAG008,Director of Corporate Services and Transformation,Revenue,Employees
http://www.ons.gov.uk/ons/guide-method/geography/products/names--codes-and-look-ups/names-and-codes-listings/names-and-codes-for-administrative-geography/index.html,Thanet District Council,29/08/2013,344002,886.70,Neopost Ltd,NEO003,Director of Corporate Services and Transformation,Revenue,Supplies And Services
http://www.ons.gov.uk/ons/guide-method/geography/products/names--codes-and-look-ups/names-and-codes-listings/names-and-codes-for-administrative-geography/index.html,Thanet District Council,29/08/2013,344380,5684.00,Northwood Builders,NOR002,Director of Corporate Services and Transformation,Balance Sheet,Long Term Assets
http://www.ons.gov.uk/ons/guide-method/geography/products/names--codes-and-look-ups/names-and-codes-listings/names-and-codes-for-administrative-geography/index.html,Thanet District Council,29/08/2013,344293,16779.96,Ocs Group Uk Ltd T/A Fountains,OCS005,Director of Operational Services,Revenue,Premises Related Expenditure
http://www.ons.gov.uk/ons/guide-method/geography/products/names--codes-and-look-ups/names-and-codes-listings/names-and-codes-for-administrative-geography/index.html,Thanet District Council,29/08/2013,344362,2639.69,Ocs Group Uk Ltd T/A Fountains,OCS005,Director of Operational Services,Revenue,Premises Related Expenditure
http://www.ons.gov.uk/ons/guide-method/geography/products/names--codes-and-look-ups/names-and-codes-listings/names-and-codes-for-administrative-geography/index.html,Thanet District Council,29/08/2013,343580,582.73,Parkeon Limited,PAR063,Director of Operational Services,Revenue,Supplies And Services
http://www.ons.gov.uk/ons/guide-method/geography/products/names--codes-and-look-ups/names-and-codes-listings/names-and-codes-for-administrative-geography/index.html,Thanet District Council,29/08/2013,344001,565.00,Parkview Fabrication & Restoration,PAR057,Director of Operational Services,Revenue,Supplies And Services
http://www.ons.gov.uk/ons/guide-method/geography/products/names--codes-and-look-ups/names-and-codes-listings/names-and-codes-for-administrative-geography/index.html,Thanet District Council,29/08/2013,344065,233.27,Phoenix Software Ltd,PHO002,East Kent Shared Services,Revenue,Supplies And Services
http://www.ons.gov.uk/ons/guide-method/geography/products/names--codes-and-look-ups/names-and-codes-listings/names-and-codes-for-administrative-geography/index.html,Thanet District Council,29/08/2013,344066,415.27,Phoenix Software Ltd,PHO002,East Kent Shared Services,Revenue,Supplies And Services
http://www.ons.gov.uk/ons/guide-method/geography/products/names--codes-and-look-ups/names-and-codes-listings/names-and-codes-for-administrative-geography/index.html,Thanet District Council,29/08/2013,344308,27642.86,Phoenix Software Ltd,PHO002,East Kent Shared Services,Revenue,Supplies And Services
http://www.ons.gov.uk/ons/guide-method/geography/products/names--codes-and-look-ups/names-and-codes-listings/names-and-codes-for-administrative-geography/index.html,Thanet District Council,29/08/2013,344060,340.00,Pillory Barn Design Ltd,PIL004,Director of Operational Services,Revenue,Supplies And Services
http://www.ons.gov.uk/ons/guide-method/geography/products/names--codes-and-look-ups/names-and-codes-listings/names-and-codes-for-administrative-geography/index.html,Thanet District Council,29/08/2013,344348,10874.00,Pillory Barn Design Ltd,PIL004,Director of Operational Services,Revenue,Supplies And Services
http://www.ons.gov.uk/ons/guide-method/geography/products/names--codes-and-look-ups/names-and-codes-listings/names-and-codes-for-administrative-geography/index.html,Thanet District Council,29/08/2013,344349,13124.00,Pillory Barn Design Ltd,PIL004,Director of Operational Services,Revenue,Supplies And Services
http://www.ons.gov.uk/ons/guide-method/geography/products/names--codes-and-look-ups/names-and-codes-listings/names-and-codes-for-administrative-geography/index.html,Thanet District Council,29/08/2013,343891,550.00,Premier Signs,PRE027,Director of Corporate Services and Transformation,Balance Sheet,Long Term Assets
http://www.ons.gov.uk/ons/guide-method/geography/products/names--codes-and-look-ups/names-and-codes-listings/names-and-codes-for-administrative-geography/index.html,Thanet District Council,29/08/2013,343892,550.00,Premier Signs,PRE027,Director of Corporate Services and Transformation,Balance Sheet,Long Term Assets
http://www.ons.gov.uk/ons/guide-method/geography/products/names--codes-and-look-ups/names-and-codes-listings/names-and-codes-for-administrative-geography/index.html,Thanet District Council,29/08/2013,343893,550.00,Premier Signs,PRE027,Director of Corporate Services and Transformation,Balance Sheet,Long Term Assets
http://www.ons.gov.uk/ons/guide-method/geography/products/names--codes-and-look-ups/names-and-codes-listings/names-and-codes-for-administrative-geography/index.html,Thanet District Council,29/08/2013,343894,825.00,Premier Signs,PRE027,Director of Corporate Services and Transformation,Balance Sheet,Long Term Assets
http://www.ons.gov.uk/ons/guide-method/geography/products/names--codes-and-look-ups/names-and-codes-listings/names-and-codes-for-administrative-geography/index.html,Thanet District Council,29/08/2013,343895,275.00,Premier Signs,PRE027,Director of Corporate Services and Transformation,Balance Sheet,Long Term Assets
http://www.ons.gov.uk/ons/guide-method/geography/products/names--codes-and-look-ups/names-and-codes-listings/names-and-codes-for-administrative-geography/index.html,Thanet District Council,29/08/2013,344035,275.00,Premier Signs,PRE027,Director of Corporate Services and Transformation,Balance Sheet,Long Term Assets
http://www.ons.gov.uk/ons/guide-method/geography/products/names--codes-and-look-ups/names-and-codes-listings/names-and-codes-for-administrative-geography/index.html,Thanet District Council,29/08/2013,344376,5320.00,Premiere Projects Limited,PRE022,Director of Corporate Services and Transformation,Balance Sheet,Long Term Assets
http://www.ons.gov.uk/ons/guide-method/geography/products/names--codes-and-look-ups/names-and-codes-listings/names-and-codes-for-administrative-geography/index.html,Thanet District Council,29/08/2013,343831,1225.00,R Cannon,CAN007,Director of Operational Services,Revenue,Premises Related Expenditure
http://www.ons.gov.uk/ons/guide-method/geography/products/names--codes-and-look-ups/names-and-codes-listings/names-and-codes-for-administrative-geography/index.html,Thanet District Council,29/08/2013,344295,350.00,Rogers & Hambidge Ltd,ROG007,Director of Community Services,Revenue,Supplies And Services
http://www.ons.gov.uk/ons/guide-method/geography/products/names--codes-and-look-ups/names-and-codes-listings/names-and-codes-for-administrative-geography/index.html,Thanet District Council,29/08/2013,344425,1000.00,Royal Inst Of British Architects,RIB005,Director of Community Services,Revenue,Supplies And Services
http://www.ons.gov.uk/ons/guide-method/geography/products/names--codes-and-look-ups/names-and-codes-listings/names-and-codes-for-administrative-geography/index.html,Thanet District Council,29/08/2013,344105,1863.79,Royal Mail,ROY004,Director of Corporate Services and Transformation,Revenue,Supplies And Services
http://www.ons.gov.uk/ons/guide-method/geography/products/names--codes-and-look-ups/names-and-codes-listings/names-and-codes-for-administrative-geography/index.html,Thanet District Council,29/08/2013,344332,403.85,Silgo Lubricants Ltd,SIL007,Director of Operational Services,Revenue,Transport Related Expenditure
http://www.ons.gov.uk/ons/guide-method/geography/products/names--codes-and-look-ups/names-and-codes-listings/names-and-codes-for-administrative-geography/index.html,Thanet District Council,29/08/2013,344377,9315.00,South East Building Company Limited,SEB001,Director of Corporate Services and Transformation,Balance Sheet,Long Term Assets
http://www.ons.gov.uk/ons/guide-method/geography/products/names--codes-and-look-ups/names-and-codes-listings/names-and-codes-for-administrative-geography/index.html,Thanet District Council,29/08/2013,344042,-402.85,Southern Electric,SEL007,Director of Operational Services,Revenue,Premises Related Expenditure
http://www.ons.gov.uk/ons/guide-method/geography/products/names--codes-and-look-ups/names-and-codes-listings/names-and-codes-for-administrative-geography/index.html,Thanet District Council,29/08/2013,344121,1006.04,Southern Electric,SEL007,Director of Operational Services,Revenue,Premises Related Expenditure
http://www.ons.gov.uk/ons/guide-method/geography/products/names--codes-and-look-ups/names-and-codes-listings/names-and-codes-for-administrative-geography/index.html,Thanet District Council,29/08/2013,344127,318.51,Southern Electric,SEL007,Director of Operational Services,Revenue,Premises Related Expenditure
http://www.ons.gov.uk/ons/guide-method/geography/products/names--codes-and-look-ups/names-and-codes-listings/names-and-codes-for-administrative-geography/index.html,Thanet District Council,29/08/2013,344138,404.46,Southern Electric,SEL007,Director of Operational Services,Revenue,Premises Related Expenditure
http://www.ons.gov.uk/ons/guide-method/geography/products/names--codes-and-look-ups/names-and-codes-listings/names-and-codes-for-administrative-geography/index.html,Thanet District Council,29/08/2013,344139,502.24,Southern Electric,SEL007,Director of Operational Services,Revenue,Premises Related Expenditure
http://www.ons.gov.uk/ons/guide-method/geography/products/names--codes-and-look-ups/names-and-codes-listings/names-and-codes-for-administrative-geography/index.html,Thanet District Council,29/08/2013,343937,6940.14,Southern Water,SWA001,Director of Operational Services,Revenue,Premises Related Expenditure
http://www.ons.gov.uk/ons/guide-method/geography/products/names--codes-and-look-ups/names-and-codes-listings/names-and-codes-for-administrative-geography/index.html,Thanet District Council,29/08/2013,344071,455.39,Sparshatts Of Kent Ltd,SPA008,Director of Operational Services,Revenue,Transport Related Expenditure
http://www.ons.gov.uk/ons/guide-method/geography/products/names--codes-and-look-ups/names-and-codes-listings/names-and-codes-for-administrative-geography/index.html,Thanet District Council,29/08/2013,344072,-218.03,Sparshatts Of Kent Ltd,SPA008,Director of Operational Services,Revenue,Transport Related Expenditure
http://www.ons.gov.uk/ons/guide-method/geography/products/names--codes-and-look-ups/names-and-codes-listings/names-and-codes-for-administrative-geography/index.html,Thanet District Council,29/08/2013,344325,12474.00,Straight Plc,STR021,Director of Corporate Services and Transformation,Balance Sheet,Long Term Assets
http://www.ons.gov.uk/ons/guide-method/geography/products/names--codes-and-look-ups/names-and-codes-listings/names-and-codes-for-administrative-geography/index.html,Thanet District Council,29/08/2013,344326,594.00,Straight Plc,STR021,Director of Corporate Services and Transformation,Balance Sheet,Long Term Assets
http://www.ons.gov.uk/ons/guide-method/geography/products/names--codes-and-look-ups/names-and-codes-listings/names-and-codes-for-administrative-geography/index.html,Thanet District Council,29/08/2013,343956,448.80,Supplies Team,SUP001,Director of Corporate Services and Transformation,Revenue,Supplies And Services
http://www.ons.gov.uk/ons/guide-method/geography/products/names--codes-and-look-ups/names-and-codes-listings/names-and-codes-for-administrative-geography/index.html,Thanet District Council,29/08/2013,343609,8263.89,Tcs Services Ltd,TCS002,Director of Community Services,Revenue,Supplies And Services
http://www.ons.gov.uk/ons/guide-method/geography/products/names--codes-and-look-ups/names-and-codes-listings/names-and-codes-for-administrative-geography/index.html,Thanet District Council,29/08/2013,344098,2450.00,The Glenwood Hotel,GLE007,Director of Community Services,Revenue,Supplies And Services
http://www.ons.gov.uk/ons/guide-method/geography/products/names--codes-and-look-ups/names-and-codes-listings/names-and-codes-for-administrative-geography/index.html,Thanet District Council,29/08/2013,341728,950.00,Thintech Ltd,THI009,East Kent Shared Services,Revenue,Supplies And Services
http://www.ons.gov.uk/ons/guide-method/geography/products/names--codes-and-look-ups/names-and-codes-listings/names-and-codes-for-administrative-geography/index.html,Thanet District Council,29/08/2013,338548,932.00,Uplands Engineering Ltd,UPL001,Director of Operational Services,Revenue,Supplies And Services
http://www.ons.gov.uk/ons/guide-method/geography/products/names--codes-and-look-ups/names-and-codes-listings/names-and-codes-for-administrative-geography/index.html,Thanet District Council,29/08/2013,342873,2500.00,Uplands Engineering Ltd,UPL001,Director of Corporate Services and Transformation,Balance Sheet,Current Assets
http://www.ons.gov.uk/ons/guide-method/geography/products/names--codes-and-look-ups/names-and-codes-listings/names-and-codes-for-administrative-geography/index.html,Thanet District Council,29/08/2013,342874,510.00,Uplands Engineering Ltd,UPL001,Director of Operational Services,Revenue,Supplies And Services
http://www.ons.gov.uk/ons/guide-method/geography/products/names--codes-and-look-ups/names-and-codes-listings/names-and-codes-for-administrative-geography/index.html,Thanet District Council,29/08/2013,344070,2341.78,Wise Handling Limited,WIS001,Director of Operational Services,Revenue,Supplies And Services
http://www.ons.gov.uk/ons/guide-method/geography/products/names--codes-and-look-ups/names-and-codes-listings/names-and-codes-for-administrative-geography/index.html,Thanet District Council,29/08/2013,343886,501.50,Wyzrds Co Ltd,WYZ001,Director of Operational Services,Revenue,Supplies And Services
http://www.ons.gov.uk/ons/guide-method/geography/products/names--codes-and-look-ups/names-and-codes-listings/names-and-codes-for-administrative-geography/index.html,Thanet District Council,30/08/2013,344726,2325950.00,Secretary Of State,SEC003,Director of Corporate Services and Transformation,Balance Sheet,Current Liabilities


